Workbook

Sheet CopyPaste (hidden)

Sheet Merkmalsausprägung (hidden)
A2: ='Text - Sprache'!D5&" => ' OK ' => "&'Text - Sprache'!E5&":" -> Eingabe => ' OK ' => Ergebnis: | B2: 892 | C2: =LEFT(Berechnung!E44,1) -> 1 | D2: =RIGHT(Berechnung!E44,1) -> 7 | E2: =LEFT(Berechnung!E103,1) -> 7 | F2: =RIGHT(Berechnung!E103,1) -> 1 | G2: =Berechnung!E36 -> 18 | H2: L | I2: =Berechnung!C20 -> 495 | J2: =Berechnung!E53 -> R | K2: =IF(L2="","","G") ->  | L2: =MID(Berechnung!E58,2,2) ->  | M2: =IF(N2="","","H") ->  | N2: =MID(Berechnung!E68,2,4) ->  | O2: =Berechnung!E32 -> 
A3: ='Text - Sprache'!D5&":" -> Eingabe: | B3: 892 | C3: # | D3: # | E3: # | F3: # | G3: ## | H3: L | I3: #### | J3: # | K3: G | L3: ## | M3: H | N3: #### | O3: # | S3: Spalte
C4: * | D4: * | E4: * | F4: * | G4: * | I4: * | J4: * | R4: 1. Länge | S4: I | T4: =IF(I3="####","#",I3) -> #
R5: 2. Kug/Rol-Leiste | S5: D | T5: =IF(OR(D3=5,D3=6),2,IF(OR(D3=7,D3=8),1,"#")) -> #
I6: ="* = "&'Text - Sprache'!E77 -> * = Pflichtfelder | R6: 2.1 Rollenausr. | S6: O | T6: =IF(O3="X",TRUE,FALSE) -> FALSE
R7: 3. Nutbreite | S7: G | T7: =IF(G3=18,1,IF(G3=22,2,IF(G3=28,3,IF(G3=36,4,IF(G3=13,5,IF(G3=17,6,"#")))))) -> #
R8: 4. Betätigung | S8: D | T8: =IF(OR(D3=5,D3=7),1,IF(OR(D3=6,D3=8),2,"#")) -> #
R9: 5. Hub | S9: C | T9: =IF(C3=1,C3,IF(C3=2,C3,"#")) -> #
R10: 6. Befestigung | S10: J | T10: =IF(OR(J3="R",J3="S"),1,IF(J3="K",2,"#")) -> #
R11: 7. Abst.Einsatz | S11: L | T11: =IF(OR(L3="##",L3="",L3=" "),Berechnung!C63,U11) -> 50 | U11: =Berechnung!C60-L3+Berechnung!C63 -> 
R12: 8. Nuttiefe | S12: N | T12: =IF(OR(N3="####",N3="",N3=" "),Berechnung!C79,U12) -> 300 | U12: =(Berechnung!C75-N3)*10+Berechnung!C79 -> 
R13: 9.1 Druck | S13: D | T13: =IF(D3=7,Artikelstamm!AC8,IF(D3=5,Artikelstamm!AC20,0)) -> 0
R14: 9.2 Temperatur | S14: E | T14: =IF(OR(E3=6,E3=7),Artikelstamm!E39,IF(E3=5,Artikelstamm!E40,IF(E3=4,Artikelstamm!E41,"#"))) -> #
R15: 9.3 Material | S15: E | T15: =IF(OR(E3=4,E3=5,E3=6),2,IF(E3=7,1,"#")) -> #

Sheet Makro-Info
B3: ='Text - Sprache'!F77 -> ACHTUNG
B4: ='Text - Sprache'!G77 -> Diese Datei enthält Makros! Die Ausführung von Makros wird jedoch verhindert! Bitte stellen Sie sicher, dass Makros ausgeführt werden können!
B6: =IF(Berechnung!C7=2,"",'Text - Sprache'!F80) -> ATTENTION
B7: =IF(Berechnung!C7=2,"",'Text - Sprache'!G80) -> This file contains macros! The execution of macros is prevented! Please make sure that macros can be executed!

Sheet Eingabe (hidden)
A1: 60459
A2: 19571 | C2: ='Text - Sprache'!C5&": "&'Text - Sprache'!J23 -> Auswahl: Sprache
A3: 51457 | C3: =Einstellungen!$B$6 -> 0 | D3: Info Vorzugslängen
A4: 71881 | C4: =Einstellungen!$B$8 -> 0 | D4: Verkaufspreis
A5: 31109 | C5: =Einstellungen!$B$10 -> TRUE | D5: Optionen/vergr.Hub | P5: =Einstellungen!E2 -> 18042017
A6: 85670 | C6: =IF(Einstellungen!B12=TRUE,1,0) -> 0 | D6: PDF/Penta
A7: 44003
A8: 46707 | C8: ='Text - Sprache'!D5&" "&'Text - Sprache'!F5&" / "&'Text - Sprache'!G5&" : 1. => 9." -> Eingabe Kugelleiste / Rollenleiste : 1. => 9. | M8: ='Text - Sprache'!E5&": "&Berechnung!D28 -> Ergebnis: Kugelleiste | P8: =TODAY() -> 2017-04-18
A9: 74234
A10: 78489 | C10: ="1. "&'Text - Sprache'!D5&": "&'Text - Sprache'!R5 -> 1. Eingabe: gewünschte Leistenlänge | G10: ="7. "&'Text - Sprache'!C5&": "&Berechnung!C58 -> 7. Auswahl: Kugelabstand | M10: ='Text - Sprache'!Q59&":" -> Merkmalsausprägung:
A11: 23968 | C11: 500 | E11: mm | G11: =Berechnung!D58&" mm" -> 30 mm | H11: + | I11: =Berechnung!C64 -> 50 | M11: =Berechnung!D5&Berechnung!E5 -> 892177118L495R
A12: 56545 | C12: =Berechnung!D24 -> 2925 | D12: mm max. | G12: =Berechnung!C61&" mm max." -> 60 mm max. | I12: =Berechnung!C63 -> 50 | M12: ='Text - Sprache'!C41&":" -> Gehäusematerial: | N12: =Berechnung!D103 -> Aluminium
A13: 20526 | C13: =Berechnung!D23 -> 105 | D13: mm min. | G13: =Berechnung!C60&" mm Standard" -> 30 mm Standard | I13: =Berechnung!D58 -> 30 | M13: =Berechnung!D28&", "&Berechnung!D44&IF(AND(Berechnung!C69=TRUE,Berechnung!C71=TRUE)," ("&'Text - Sprache'!M23&" "&'Text - Sprache'!L23&")","") -> Kugelleiste, hydraulisch
A14: 37195 | G14: =Berechnung!C59&" mm min." -> 20 mm min. | I14: =Berechnung!C60 -> 30
A15: 80102 | C15: ="2. "&'Text - Sprache'!C5&": "&'Text - Sprache'!F5&" / "&'Text - Sprache'!G5 -> 2. Auswahl: Kugelleiste / Rollenleiste | H15: - | M15: ='Text - Sprache'!K23 -> Rollenausrichtung | N15: =Berechnung!D32 -> 0°
A16: 16391 | D16: =Berechnung!C28 -> 1 | M16: ='Text - Sprache'!K5&":" -> Befestigung: | N16: =Berechnung!D53 -> Riegel
A17: 81248 | D17: =Berechnung!C32 -> FALSE
A18: 59254
A19: 26253 | G19: ="8. "&'Text - Sprache'!C5&": "&'Text - Sprache'!P5 -> 8. Auswahl: Nuttiefe | M19: ='Text - Sprache'!O5&":" -> Nutbreite: | N19: =Artikelstamm!G6 -> 18 | O19: =ROUND(Artikelstamm!G6*0.039369964,3)&" in" -> 0,709 in
A20: 65948 | C20: ="2.1 "&'Text - Sprache'!C5&": "&'Text - Sprache'!K23&" 0° / 90°" -> 2.1 Auswahl: Rollenausrichtung 0° / 90° | G20: =Berechnung!D68&" mm" -> 30 mm | H20: + | I20: =Berechnung!C80 -> 300 | M20: ='Text - Sprache'!P5&":" -> Nuttiefe: | N20: =Berechnung!D68 -> 30 | O20: =ROUND(Berechnung!D68*0.039369964,3)&" in" -> 1,181 in
A21: 93538 | D21: ='Text - Sprache'!K23&" "&Berechnung!D32 -> Rollenausrichtung 0° | I21: =Berechnung!C79 -> 300 | M21: ='Text - Sprache'!Q5&":" -> Leistenlänge: | N21: =Berechnung!D20 -> 498.5 | O21: =ROUND(Berechnung!D20*0.039369964,3)&" in" -> 19,626 in | P21: ="("&'Text - Sprache'!H41&" "&Artikelstamm!AL6&" mm "&'Text - Sprache'!I41&")" -> (inkl. 3,5 mm Verschlussschraube)
A22: 64497 | I22: =Berechnung!D68 -> 30
A23: 9182 | G23: =Berechnung!C76&" mm max. "&IF(AND(Berechnung!C103=1,Einstellungen!B10=TRUE),"("&Artikelstamm!AH6&" mm "&Berechnung!B105&")","") -> 30 mm max. (45 mm Stahl) | I23: =Berechnung!C75 -> 30 | J23: =OR(Berechnung!D70=TRUE,AND(Berechnung!C28=1,Berechnung!C44=2,Berechnung!E36=36)) -> FALSE | M23: =Berechnung!C58&":" -> Kugelabstand: | N23: =Berechnung!D58 -> 30 | O23: =ROUND(Berechnung!D58*0.039369964,3)&" in" -> 1,181 in
A24: 46189 | C24: ="3. "&'Text - Sprache'!C5&": "&'Text - Sprache'!O5 -> 3. Auswahl: Nutbreite | G24: =Berechnung!C75&" mm Standard" -> 30 mm Standard | J24: ='Text - Sprache'!M23 -> Variante mit | M24: =Berechnung!C110&":" -> Kugeleinsatz: | N24: =Berechnung!D114 -> 16
A25: 90729 | G25: =Berechnung!C74&" "&Berechnung!D72&" mm min." -> 29,5 mm min. | H25: - | J25: ='Text - Sprache'!L23&"!" -> Tellerfedern! | M25: ='Text - Sprache'!C23&":" -> Hub: | N25: =Berechnung!D48 -> 1 | O25: =ROUND(Berechnung!D48*0.039369964,3)&" in" -> 0,039 in
A26: 84180 | D26: =Berechnung!C36 -> 1
A27: 41370
A28: 920 | G28: ="9. "&'Text - Sprache'!R23 -> 9. Optionen | H28: ="9.2+9.3 "&'Text - Sprache'!P41 -> 9.2+9.3 nicht verfügbar | M28: ='Text - Sprache'!H23&":" -> Tragkraft pro Einsatz: | N28: =Berechnung!C130 -> 0.79 | O28: =ROUND(Berechnung!C130*224.8089,1)&" lbf" -> 177,6 lbf | P28: ="( "&ROUND(Berechnung!C130*1000/9.81,1)&" kg / "&ROUND(Berechnung!C130*1000/9.81*2.20462,1)&" lb. )" -> ( 80,5 kg / 177,5 lb. )
A29: 97655 | G29: ="9.1 "&'Text - Sprache'!D5&": "&'Text - Sprache'!N23 -> 9.1 Eingabe: Betriebsdruck | M29: ='Text - Sprache'!I23&":" -> Gesamttragkraft: | N29: =Berechnung!C131 -> 12.64 | O29: =ROUND(Berechnung!C131*224.8089,1)&" lbf" -> 2841,6 lbf | P29: ="( "&ROUND(Berechnung!C131*1000/9.81,0)&" kg / "&ROUND(Berechnung!C131*1000/9.81*2.20462,0)&" lb. )" -> ( 1288 kg / 2841 lb. )
A30: 75046 | G30: 100 | H30: bar | J30: =Artikelstamm!AC6 -> 100 | M30: ='Text - Sprache'!L41&":" -> Ölbedarf: | N30: =Berechnung!D133 -> 1.6 | O30: =ROUND(Berechnung!D133*0.06102374,4)&" in³" -> 0,0976 in³
A31: 58834 | M31: ='Text - Sprache'!N23&":" -> Betriebsdruck: | N31: =Berechnung!D84 -> 100 | O31: =ROUND(Berechnung!D84*14.50377,0)&" PSI" -> 1450 PSI | P31: ='Text - Sprache'!J41&" "&Berechnung!D86&" bar "&'Text - Sprache'!K41&"!" -> reduzierter Betriebsdruck bar empfohlen!
A32: 3339 | C32: ="4. "&'Text - Sprache'!C5&": "&'Text - Sprache'!H5 -> 4. Auswahl: Betätigungsart | G32: =Artikelstamm!AC6&" bar max. (= Standard)" -> 100 bar max. (= Standard) | J32: =Berechnung!C84 -> TRUE | M32: ='Text - Sprache'!G41&":" -> Anschlussgewinde: | N32: =Artikelstamm!AB6 -> G1/8
A33: 50968 | G33: ='Text - Sprache'!O23 -> Druck zu hoch! | M33: ="max. "&'Text - Sprache'!P23&":" -> max. Einsatztemperatur: | N33: =Berechnung!C89 -> 100 °C | P33: =IF(Berechnung!C96=0,"",ROUND(Berechnung!C96*1.8+32,3)&" °F") -> 212 °F
A34: 58392 | D34: =Berechnung!C44 -> 1
A35: 3937
A36: 7604
A37: 44449 | C37: ="5. "&'Text - Sprache'!P41 -> 5. nicht verfügbar | G37: ="9.2 "&'Text - Sprache'!D5&": "&'Text - Sprache'!P23 -> 9.2 Eingabe: Einsatztemperatur | M37: ='Text - Sprache'!F41&":" -> Kolbendichtung: | N37: =Berechnung!C98 -> NBR
A38: 84126 | C38: ="5. "&'Text - Sprache'!C5&": "&'Text - Sprache'!C23&" (mm)" -> 5. Auswahl: Hub (mm) | G38: 100 | H38: °C | J38: =Artikelstamm!E39 -> 100 | M38: ='Text - Sprache'!M41&" / "&Berechnung!D28&":" -> Masse / Kugelleiste: | N38: ="ca. "&Berechnung!D138&" kg" -> ca. 0,9 kg | O38: =ROUND(Berechnung!D138*2.20462,3)&" lb." -> 1,984 lb.
A39: 33206 | J39: =Berechnung!D97 -> FALSE
A40: 25389
A41: 99320 | D41: =Berechnung!C48 -> 1 | G41: =Artikelstamm!E37&" -"&Artikelstamm!E39&" °C Standard"&" / "&Artikelstamm!E41&" °C max." -> 0 -100 °C Standard / 250 °C max.
A42: 19832
A43: 50136 | G43: ='Text - Sprache'!Q23&"!" -> unzulässige Temperatur!
A44: 27454 | C44: ="6. "&'Text - Sprache'!C5&": "&'Text - Sprache'!K5 -> 6. Auswahl: Befestigung | G44: ="9.3 "&'Text - Sprache'!C5&": "&'Text - Sprache'!C41 -> 9.3 Auswahl: Gehäusematerial
A45: 59556
A46: 64832 | D46: =Berechnung!C53 -> 1 | I46: =Berechnung!C103 -> 1
A47: 63011 | I47: =OR(G38>J38,I46=2) -> FALSE
A48: 70201
A49: 12199
A50: 89250 | Q50: =Einstellungen!A1 -> 0
A51: 67711
A52: 47239
A53: 32672
A54: 98073
A55: 55526
A56: 65948
A57: 55085
A58: 20212
A59: 45969
A60: 49039
A61: 67557
A62: 22568
A63: 44587
A64: 61117
A65: 32519
A66: 49094
A67: 25778
A68: 60245
A69: 32033
A70: 84853
A71: 40596
A72: 74506
A73: 38103
A74: 45085
A75: 49571
A76: 3564
A77: 7985
A78: 89271
A79: 80516
A80: 45227
A81: 4504
A82: 60188
A83: 11341
A84: 47012
A85: 41361
A86: 47981
A87: 77870
A88: 82704
A89: 53450
A90: 79218
A91: 6646
A92: 53920
A93: 92170
A94: 30955
A95: 72748
A96: 16673
A97: 45734
A98: 69800
A99: 82604
A100: 32931
A101: 84484
A102: 15975
A103: 81801
A104: 47182
A105: 31207
A106: 32375
A107: 87897
A108: 87999
A109: 56439
A110: 38636
A111: 48240
A112: 94594
A113: 98786
A114: 50194
A115: 22770
A116: 68391
A117: 10231
A118: 42348
A119: 91841
A120: 49582
A121: 26449
A122: 39322
A123: 89028
A124: 18689
A125: 62120
A126: 28330
A127: 58942
A128: 23132
A129: 31239
A130: 98636
A131: 40041
A132: 28785
A133: 92429
A134: 5617
A135: 72443
A136: 96543
A137: 19257
A138: 59826
A139: 30740
A140: 83883
A141: 95542
A142: 41053
A143: 81808
A144: 71427
A145: 35670
A146: 37392
A147: 67621
A148: 14502
A149: 29907
A150: 9298
A151: 13062
A152: 19707
A153: 14707
A154: 78651
A155: 58739
A156: 46471
A157: 68032
A158: 42820
A159: 18792
A160: 33620
A161: 29659
A162: 13727
A163: 63713
A164: 50933
A165: 46492
A166: 81905
A167: 28150
A168: 75714
A169: 42879
A170: 5563
A171: 43725
A172: 94344
A173: 15920
A174: 24647
A175: 96847
A176: 28851
A177: 55782
A178: 99908
A179: 11520
A180: 88469
A181: 91013
A182: 76955
A183: 57159
A184: 46204
A185: 58849
A186: 75327
A187: 81403
A188: 40391
A189: 532
A190: 2550
A191: 67925
A192: 1260
A193: 81619
A194: 93198
A195: 19245
A196: 2501
A197: 37298
A198: 72964
A199: 64544
A200: 37819
... 81 more rows

Sheet Einstellungen (hidden)
B1: =IF(Eingabe!M4=0,"name",Eingabe!M4) -> name
B2: Einstellungen | D2: Stand | E2: 18042017
G3: Bennennung | H3: aktuell
G4: 1. Leistenlänge | H4: =PSIPENTA!F4 -> 500
G5: 2. Auswahl Kugel- / Rollenleiste | H5: =PSIPENTA!F5 -> 1
G6: 2.1 Rollenausrichtung | H6: =PSIPENTA!F6 -> FALSE
G7: 3. Nutbreite | H7: =PSIPENTA!F7 -> 1
G8: 4. Betätigungsart | H8: =PSIPENTA!F8 -> 1
G9: 5. Hub | H9: =PSIPENTA!F9 -> 1
A10: 3. | B10: TRUE | G10: 6. Befestigung | H10: =PSIPENTA!F10 -> 1
G11: 7. Abstand Einsätze | H11: =PSIPENTA!F11 -> 50
G12: 8. Nuttiefe | H12: =PSIPENTA!F12 -> 300
G13: 9.1 Betriebsdruck | H13: =PSIPENTA!F13 -> 100
G14: 9.2 Einsatztemperatur | H14: =PSIPENTA!F14 -> 100
G15: 9.3 Gehäusematerial | H15: =PSIPENTA!F15 -> 1
G16: Basismusternummer | H16: =PSIPENTA!F16 -> 
G17: Konfigurationszeitstempel TT.MM.JJJJ hh:mm:ss | H17: =PSIPENTA!F17 -> 0
G18: PDF-Zeichnungen erzeugt? | H18: =PSIPENTA!F18 -> 
G19: Grundpreis Basismuster | H19: =PSIPENTA!F19 -> 100
G20: Rabattgruppe Basismuster | H20: =PSIPENTA!F20 -> K
G21: Zu- / Abschlag aus Rabattgruppe | H21: =PSIPENTA!F21 -> 0
G22: Status | H22: =PSIPENTA!F22 -> 2
G23: Anwender aktuell | H23: =PSIPENTA!F23 -> 
G24: Bearbeiter Konfiguration aus PSI-Penta | H24: =PSIPENTA!F24 -> 
G25: Dateiname Excelergebnistabelle | H25: =PSIPENTA!F25 -> 0
G26: Pfad Excelergebnistabelle | H26: =PSIPENTA!F26 -> 0
B27: Arbeitsmappe wird immer mit Schreibschutz geöffnet! (kein Speichern möglich) | G27: Datapool-String PSI-Penta | H27: =PSIPENTA!F27 -> 0
B28: Für Änderungen: | D28: Schreibschutz EIN
B29: mit "OK + Speichern" wird Schreibschutz wieder eingeschaltet!
C33: Programmhistorie
A34: Datum | C34: Änderung
A35: 2015-04-02 | C35: Nutbreitenangabe Ergebnisseite EINGABE berichtigt
A36: 2015-09-30 | C36: Drehfeldformatierung Nuttiefe von 0-330 statt 0-310, Mittelwert 170 statt 150 (max. Nuttiefe war bei manchen Varianten nicht möglich)
A37: 2016-02-22 | C37: max. Leistenlänge bei Stahlleisten angepaßt (bei Fa. Schneidmüller längere Tieflochbohrung möglich): 2400 war 1220 / 3000 war 1680 / 4000 war 1920
A38: 2016-03-18 | C38: max. Leistenhöhe bei 18er Stahlleiste von 40 auf 45 erhöht
A39: 2016-03-24 | C39: Tabellenblatt "Zeichnung" neu hinzu (Wunsch USA)
A40: 2016-08-16 | C40: max. Leistenhöhe bei 1 1/16" Stahlleiste von 55 auf 58 erhöht
A41: 2017-04-18 | C41: Umstellung der Konfigurationsdatei von .xls auf .xlsm (neues Excel Dataiformat)

Sheet Zeichnung (hidden)
B1: =Einstellungen!E2 -> 18042017 | K1: Hilma-Römheld GmbH - Schützenstraße 74 - 57271 Hilchenbach - www.roemheld-gruppe.de
B2: =Eingabe!M13&" [ "&Artikelstamm!C6&" ]" -> Kugelleiste, hydraulisch [ 18 mm ] | K2: Bild nur als Beispiel - optische Änderungen vorbehalten Image for example only - subject to optical changes
B3: =IF(Berechnung!C28=1,"",Eingabe!M15) ->  | D3: =IF(Berechnung!C28=1,"",Berechnung!D32) -> 
B4: =Eingabe!M12 -> Gehäusematerial: | C4: =Berechnung!D103 -> Aluminium
B5: =Eingabe!M16 -> Befestigung: | C5: =Berechnung!D53&IF(AND(Berechnung!C44=2,Berechnung!C53=1)," (ISO 4762 - M"&Artikelstamm!BJ6&" x "&Berechnung!D185&" - 8.8)","")&IF(AND(Berechnung!C44=1,Berechnung!C53=1)," ("&'Text - Sprache'!M5&" M"&D8&" x "&Berechnung!D199&")","") -> Riegel (Schraube M5 x 12)
C6: =IF(AND(Berechnung!C44=1,Berechnung!C53=1),"C","") -> C | D6: =IF(AND(Berechnung!C44=1,Berechnung!C53=1),Artikelstamm!BB6,"") -> 5 | E6: =IF(AND(Berechnung!C44=1,Berechnung!C53=1),"( "&ROUND(D6*0.039369964,3)&" in )","") -> ( 0,197 in ) | F6: Befestigungslochbild Riegel [C]
C7: =IF(AND(Berechnung!C44=1,Berechnung!C53=1),"D","") -> D | D7: =IF(AND(Berechnung!C44=1,Berechnung!C53=1),Artikelstamm!BC6,"") -> 36 | E7: =IF(AND(Berechnung!C44=1,Berechnung!C53=1),"( "&ROUND(D7*0.039369964,3)&" in )","") -> ( 1,417 in ) | F7: Befestigungslochbild Riegel [D]
C8: =IF(AND(Berechnung!C44=1,Berechnung!C53=1),"E","") -> E | D8: =IF(AND(Berechnung!C44=1,Berechnung!C53=1),Artikelstamm!BD6,"") -> 5 | F8: Gewinde [E]
C9: =IF(AND(Berechnung!C44=1,Berechnung!C53=1),"F","") -> F | D9: =IF(AND(Berechnung!C44=1,Berechnung!C53=1),Artikelstamm!BE6,"") -> 8 | E9: =IF(AND(Berechnung!C44=1,Berechnung!C53=1),"( "&ROUND(D9*0.039369964,3)&" in )","") -> ( 0,315 in ) | F9: Tiefe Gewinde [F]
C10: =IF(Berechnung!C53=2,"B","") ->  | D10: =IF(Berechnung!C53=2,Artikelstamm!BF6,"") ->  | E10: =IF(Berechnung!C53=2,"( "&ROUND(D10*0.039369964,3)&" in )","") ->  | F10: Lage Klemmschloss [B]
C11: =IF(Berechnung!C53=2,"C1","") ->  | D11: =IF(Berechnung!C53=2,Artikelstamm!BG6,"") ->  | E11: =IF(Berechnung!C53=2,"( "&ROUND(D11*0.039369964,3)&" in )","") ->  | F11: Lage Klemmschloss [i / C1]
C12: =IF(AND(Berechnung!C44=2,Berechnung!C53=1),"C","") ->  | D12: =IF(AND(Berechnung!C44=2,Berechnung!C53=1),Artikelstamm!BH6,"") ->  | E12: =IF(AND(Berechnung!C44=2,Berechnung!C53=1),"( "&ROUND(D12*0.039369964,3)&" in )","") ->  | F12: Lage Schraubensenkung [C]
C13: =IF(AND(Berechnung!C44=2,Berechnung!C53=1),"T","") ->  | D13: =IF(AND(Berechnung!C44=2,Berechnung!C53=1),Artikelstamm!BI6,"") ->  | E13: =IF(AND(Berechnung!C44=2,Berechnung!C53=1),"( "&ROUND(D13*0.039369964,3)&" in )","") ->  | F13: Tiefe Schraubensenkung [T]
C14: =IF(AND(Berechnung!C44=2,Berechnung!C53=1),"E","") ->  | D14: =IF(AND(Berechnung!C44=2,Berechnung!C53=1),Artikelstamm!BJ6,"") ->  | F14: Gewinde [E]
C15: =IF(AND(Berechnung!C44=2,Berechnung!C53=1),"F min.","") ->  | D15: =IF(AND(Berechnung!C44=2,Berechnung!C53=1),Artikelstamm!BK6,"") ->  | E15: =IF(AND(Berechnung!C44=2,Berechnung!C53=1),"( "&ROUND(D15*0.039369964,3)&" in )","") ->  | F15: Tiefe Gewinde [F]
B16: =Eingabe!M19 -> Nutbreite: | C16: a | D16: =Artikelstamm!G6 -> 18 | E16: ="( "&Eingabe!O19&" )" -> ( 0,709 in )
D17: =Artikelstamm!BP6&" / +"&Artikelstamm!BQ6 -> 0 / +0,2 | E17: ="( "&ROUND(Artikelstamm!BP6/25.4,3)&" / +"&ROUND(Artikelstamm!BQ6/25.4,3)&" in )" -> ( 0 / +0,008 in ) | F17: Größt-/Kleinstmaß
C18: a1 | D18: =Artikelstamm!G6 -> 18 | E18: ="( "&Eingabe!O19&" )" -> ( 0,709 in ) | F18: Leistenbreite [a1]
D19: =Artikelstamm!BL6&" / "&Artikelstamm!BM6 -> -0,2 / -0,5 | E19: ="( "&ROUND(Artikelstamm!BL6/25.4,3)&" / "&ROUND(Artikelstamm!BM6/25.4,3)&" in )" -> ( -0,008 / -0,02 in ) | F19: Größt-/Kleinstmaß
C20: R min. | D20: ="R"&Artikelstamm!BT6&" ("&Artikelstamm!BT6&"x45°)" -> R1 (1x45°) | E20: ="( "&ROUND(Artikelstamm!BT6*0.039369964,3)&" in )" -> ( 0,039 in ) | F20: Radius/Kantenbrucn [R]
B21: =Eingabe!M20 -> Nuttiefe: | C21: h | D21: =Berechnung!D68 -> 30 | E21: ="( "&Eingabe!O20&" )" -> ( 1,181 in )
D22: =Artikelstamm!BR6&" / +"&Artikelstamm!BS6 -> 0 / +0,2 | E22: ="( "&ROUND(Artikelstamm!BR6/25.4,3)&" / +"&ROUND(Artikelstamm!BS6/25.4,3)&" in )" -> ( 0 / +0,008 in ) | F22: Größt-/Kleinstmaß | G22: h1 + s
C23: h1 | D23: =Berechnung!D68 -> 30 | E23: ="( "&Eingabe!O20&" )" -> ( 1,181 in ) | F23: Leistenhöhe [h1] | G23: =D23+Berechnung!D48 -> 31 | H23: ="( "&ROUND(G23/25.4,3)&" in )" -> ( 1,22 in )
D24: =Artikelstamm!BN6&" / "&Artikelstamm!BO6 -> -0,2 / -0,4 | E24: ="( "&ROUND(Artikelstamm!BN6/25.4,3)&" / "&ROUND(Artikelstamm!BO6/25.4,3)&" in )" -> ( -0,008 / -0,016 in ) | F24: Größt-/Kleinstmaß | G24: =IF(Berechnung!D191>0,"+","")&Berechnung!D191&" / "&Berechnung!D192 -> +0,2 / -0,2 | H24: ="( "&IF(Berechnung!D191>0,"+","")&ROUND(Berechnung!D191/25.4,3)&" / "&ROUND(Berechnung!D192/25.4,3)&" in )" -> ( +0,008 / -0,008 in )
B25: =Eingabe!M21 -> Leistenlänge: | C25: L | D25: =Berechnung!D26 -> 495 | E25: ="( "&ROUND(Berechnung!D26*0.039369964,3)&" in )" -> ( 19,488 in )
B26: =Eingabe!M24 -> Kugeleinsatz: | D26: =Berechnung!D114 -> 16
B27: =Eingabe!M25 -> Hub: | C27: s | D27: =Berechnung!D48 -> 1 | E27: ="( "&Eingabe!O25&" )" -> ( 0,039 in )
B28: =Eingabe!M28 -> Tragkraft pro Einsatz: | D28: =Berechnung!C130 -> 0.79 | E28: ="( "&Eingabe!O28&" )" -> ( 177,6 lbf )
D29: =Eingabe!P28 -> ( 80,5 kg / 177,5 lb. ) | I29: =Eingabe!M16 -> Befestigung: | J29: =Berechnung!B54&IF(AND(Berechnung!C44=2,Berechnung!C53=1)," (ISO 4762 - M"&Artikelstamm!BJ6&" x "&Berechnung!D185&" - 8.8)","")&IF(AND(Berechnung!C44=1,Berechnung!C53=1)," ("&'Text - Sprache'!M5&" M"&D8&" x "&Berechnung!D199&")","")&" / "&Berechnung!B55 -> Riegel (Schraube M5 x 12) / Klemmschloss
B30: =Eingabe!M29 -> Gesamttragkraft: | D30: =Berechnung!C131 -> 12.64 | E30: ="( "&Eingabe!O29&" )" -> ( 2841,6 lbf )
D31: =Eingabe!P29 -> ( 1288 kg / 2841 lb. )
B32: =Eingabe!M23 -> Kugelabstand: | C32: G | D32: =Berechnung!D112 -> 30 | E32: ="( "&Eingabe!O23&" )" -> ( 1,181 in )
B33: =IF(Berechnung!C44>1,"",Eingabe!M23) -> Kugelabstand: | C33: =IF(Berechnung!C44>1,"","G1") -> G1 | D33: =IF(Berechnung!C44>1,"",Berechnung!D111) -> 30 | E33: =IF(Berechnung!C44>1,"","( "&ROUND(Berechnung!D111*0.039369964,3)&" in )") -> ( 1,181 in )
C34: M | D34: =Artikelstamm!S6 -> 22.5 | E34: ="( "&ROUND(Artikelstamm!S6*0.039369964,3)&" in )" -> ( 0,886 in ) | F34: Insertabstand (vorn od. vorn+hinten) [M]
C35: =IF(Berechnung!C44=1,"","N") ->  | D35: =IF(Berechnung!C44=1,"",Artikelstamm!T6) ->  | E35: =IF(Berechnung!C44=1,"",ROUND(Artikelstamm!T6*0.039369964,3)&" in") ->  | F35: Insertabstand hinten [N]
B36: =Eingabe!M33 -> max. Einsatztemperatur: | D36: =Berechnung!C89 -> 100 °C | E36: ="( "&Eingabe!P33&" )" -> ( 212 °F )
B37: =Eingabe!M38 -> Masse / Kugelleiste: | D37: =Eingabe!N38 -> ca. 0,9 kg | E37: ="( "&Eingabe!O38&" )" -> ( 1,984 lb. )
B38: =IF(Berechnung!C44>1,"",Eingabe!M32) -> Anschlussgewinde: | C38: =IF(Berechnung!C44>1,"","A") -> A | D38: =IF(Berechnung!C44>1,"",Artikelstamm!AB6) -> G1/8
C39: =IF(Berechnung!C44>1,"","K") -> K | D39: =IF(Berechnung!C44>1,"",Berechnung!D167) -> 8 | E39: =IF(Berechnung!C44>1,"","( "&ROUND(Berechnung!D167*0.039369964,3)&" in )") -> ( 0,315 in ) | F39: Lage Anschlussgewinde [K]
B40: =IF(Berechnung!C44>1,"",'Text - Sprache'!I41&":") -> Verschlussschraube: | C40: =IF(Berechnung!C44>1,"","L1") -> L1 | D40: =IF(Berechnung!C44>1,"",Artikelstamm!AL6) -> 3.5 | E40: =IF(Berechnung!C44>1,"","( "&ROUND(Artikelstamm!AL6*0.039369964,3)&" in )") -> ( 0,138 in )
B41: =IF(Berechnung!C44>1,"",Eingabe!M37) -> Kolbendichtung: | D41: =IF(Berechnung!C44>1,"",Berechnung!C98) -> NBR
B42: =IF(Berechnung!C44>1,"",Eingabe!M30) -> Ölbedarf: | D42: =IF(Berechnung!C44>1,"",Eingabe!N30&" cm³") -> 1,6 cm³ | E42: =IF(Berechnung!C44>1,"","( "&Eingabe!O30&" )") -> ( 0,0976 in³ )
B43: =IF(Berechnung!C44>1,"",Eingabe!M31) -> Betriebsdruck: | D43: =IF(Berechnung!C44>1,"",Berechnung!D84) -> 100 | E43: =IF(Berechnung!C44>1,"","( "&Eingabe!O31&" )") -> ( 1450 PSI ) | G43: =IF(AND(Berechnung!C44=1,Berechnung!C87<>Berechnung!C86),Eingabe!P31,"") -> 
B45: text 1 | H45: =Eingabe!M13 -> Kugelleiste, hydraulisch | K45: =Eingabe!M11 -> 892177118L495R
B46: text 2 | H46: name | I46: =TODAY() -> 2017-04-18

Sheet Artikelstamm (hidden)
BB1: Zeichnung | BC1: Zeichnung | BD1: Zeichnung | BE1: Zeichnung | BF1: Zeichnung | BG1: Zeichnung | BH1: Zeichnung | BI1: Zeichnung | BJ1: Zeichnung | BK1: Zeichnung | BL1: Zeichnung | BM1: Zeichnung | BN1: Zeichnung | BO1: Zeichnung | BP1: Zeichnung | BQ1: Zeichnung | BR1: Zeichnung | BS1: Zeichnung | BT1: Zeichnung | BU1: Zeichnung | BV1: Zeichnung
BB2: Riegel | BC2: Riegel | BD2: Riegel | BE2: Riegel | BF2: Klemmschl. | BG2: Klemmschl. | BH2: Schraube | BI2: Schraube | BJ2: Schraube | BK2: Schraube | BL2: Leistenkörper | BM2: Leistenkörper | BN2: Leistenkörper | BO2: Leistenkörper | BP2: Nut | BQ2: Nut | BR2: Nut | BS2: Nut
B3: 1 | C3: 2 | D3: 3 | E3: 4 | F3: 5 | G3: 6 | H3: 7 | I3: 8 | J3: 9 | K3: 10 | L3: 11 | M3: 12 | N3: 13 | O3: 14 | P3: 15 | Q3: 16 | R3: 17 | S3: 18 | T3: 19 | U3: 20 | V3: 21 | W3: 22 | X3: 23 | Y3: 24 | Z3: 25 | AA3: 26 | AB3: 27 | AC3: 28 | AD3: 29 | AE3: 30 | AF3: 31 | AG3: 32 | AH3: 33 | AI3: 34 | AJ3: 35 | AK3: 36 | AL3: 37 | AM3: 38 | AN3: 39 | AO3: 40 | AP3: 41 | AQ3: 42 | AR3: 43 | AS3: 44 | AT3: 45 | AU3: 46 | AV3: 47 | AW3: 48 | AX3: 49 | AY3: 50 | AZ3: 51 | BA3: 52 | BB3: 53 | BC3: 54 | BD3: 55 | BE3: 56 | BF3: 57 | BG3: 58 | BH3: 59 | BI3: 60 | BJ3: 61 | BK3: 62 | BL3: 63 | BM3: 64 | BN3: 65 | BO3: 66 | BP3: 67 | BQ3: 68 | BR3: 69 | BS3: 70 | BT3: 71 | BU3: 72 | BV3: 73 | BW3: 74
B4: Leistenart | C4: Nutbreite | D4: Betätigungsart | E4: Befestigung 1 Standard | F4: Befestigung 2 | G4: Nutbreite in mm | H4: Typ Standard 92xx | I4: Typ Hub vergrößert 92xx | J4: Typ Version Standard | K4: Typ Version Hub vergrößert | L4: Typ Version Kugelleiste Tellerfeder | M4: Typ Version Stahlausführung Standard bis 100°C | N4: Typ Version Stahlausführung VITON bis 200°C | O4: Typ Version Stahlausführung KALREZ bis 250°C | P4: Typ-Endung | Q4: Hub Standard 921x | R4: Hub vergößert 922x | S4: Randabstand erste Kugel/Rolle | T4: Randabstand letzte Kugel/Rolle | U4: Abstand 1./2. Kugel/Rolle min. | V4: Abstand weitere Kugel/Rolle min. | W4: Abstand weitere Kugel/Rolle Standard | X4: Abstand weitere Kugel/Rolle max. | Y4: Schrittweite bei Abstandsänderung | Z4: Tragkraft je Kugel/Rolle | AA4: Position Anschlussgewinde Aluminiumausf. | AB4: Anschluss- gewinde | AC4: Betriebsdruck Standard | AD4: Nuttiefe min. | AE4: Nuttiefe min. Hub vergrößert | AF4: Nuttiefe min. Kugelleiste Tellerfeder | AG4: Nuttiefe Standard | AH4: Nuttiefe max. Stahlausführung | AI4: Schrittweite Nuttiefe | AJ4: Leistenlänge max. | AK4: Leistenlänge max. Stahlausführung | AL4: Überstand Verschluss- schraube | AM4: Ø Insert- bohrung | AN4: Tiefe Insert- bohrung | AO4: Ø Kolben-/ Feder- bohrung | AP4: Tiefe Kolben-/Feder- bohrung | AQ4: Tiefe Tellerfeder- bohrung | AR4: Tiefe Kolben-/ Federbohrung Hub vergrößert | AS4: Gewicht je Insert inkl. Kolben/Federn kg | AT4: Ø Ölbohrung Aluminium | AU4: Position Ölbohrung Aluminiumausf. | AV4: Ø Ölbohrung Stahlausf. | AW4: Position Ölbohrung Stahlausf. | AX4: Artikelnummer Leistenkörper Aluminium | AY4: Artikelnummer Leistenkörper Stahl | AZ4: Artikelnummer Rohmaterial Aluminium | BA4: Anzahl T- Feder je Paket | BB4: Maß C | BC4: Maß D | BD4: Gewinde E | BE4: Maß F Gewindetiefe | BF4: Maß B | BG4: Maß C1 | BH4: Maß C | BI4: Maß T Senkungstiefe | BJ4: Maß E Gewinde | BK4: Maß F Gewindetiefe | BL4: untere Toleranz Leistenbreite a1 | BM4: obere Toleranz Leistenbreite a1 | BN4: untere Toleranz Leistenhöhe h1 | BO4: obere Toleranz Leistenhöhe h1 | BP4: untere Toleranz Nutbreite a | BQ4: obere Toleranz Nutbreite a | BR4: untere Toleranz Nuttiefe h | BS4: obere Toleranz Nuttiefe h | BT4: Eckenradius Leistenkörper R | BU4: untere Hubtoleranz | BV4: obere Hubtoleranz
B5: ="A"&B3 -> A1 | C5: ="A"&C3 -> A2 | D5: A3 | E5: A4 | F5: A5 | G5: A6 | H5: A7 | I5: A8 | J5: A9 | K5: A10 | L5: ="A"&L3 -> A11 | M5: ="A"&M3 -> A12 | N5: ="A"&N3 -> A13 | O5: ="A"&O3 -> A14 | P5: ="A"&P3 -> A15 | Q5: A16 | R5: A17 | S5: A18 | T5: A19 | U5: A20 | V5: A21 | W5: A22 | X5: A23 | Y5: A24 | Z5: A25 | AA5: ="A"&AA3 -> A26 | AB5: ="A"&AB3 -> A27 | AC5: ="A"&AC3 -> A28 | AD5: A29 | AE5: A30 | AF5: ="A"&AF3 -> A31 | AG5: A32 | AH5: A33 | AI5: A34 | AJ5: A35 | AK5: A36 | AL5: A37 | AM5: A38 | AN5: A39 | AO5: A40 | AP5: A41 | AQ5: A42 | AR5: A43 | AS5: A44 | AT5: A45 | AU5: ="A"&AU3 -> A46 | AV5: ="A"&AV3 -> A47 | AW5: ="A"&AW3 -> A48 | AX5: A49 | AY5: A50 | AZ5: A51 | BA5: ="A"&BA3 -> A52 | BB5: ="A"&BB3 -> A53 | BC5: ="A"&BC3 -> A54 | BD5: A55 | BE5: A56 | BF5: A57 | BG5: A58 | BH5: A59 | BI5: A60 | BJ5: A61 | BK5: A62 | BL5: A63 | BM5: A64 | BN5: A65 | BO5: A66 | BP5: A67 | BQ5: A68 | BR5: A69 | BS5: A70 | BT5: A71 | BU5: A72 | BV5: A73 | BW5: A74
B6: =Berechnung!D28 -> Kugelleiste | C6: =Berechnung!D36 -> 18 mm | D6: =Berechnung!D44 -> hydraulisch | E6: =DGET($B7:E31,E3,$B5:$D6) -> Riegel | F6: =DGET($B7:F31,F3,$B5:$D6) -> Klemmschloss | G6: =DGET($B7:G31,G3,$B5:$D6) -> 18 | H6: =DGET($B7:H31,H3,$B5:$D6) -> 17 | I6: =DGET($B7:I31,I3,$B5:$D6) -> 27 | J6: =DGET($B7:J31,J3,$B5:$D6) -> 71 | K6: =DGET($B7:K31,K3,$B5:$D6) -> 0 | L6: =DGET($B7:L31,L3,$B5:$D6) -> 0 | M6: =DGET($B7:M31,M3,$B5:$D6) -> 60 | N6: =DGET($B7:N31,N3,$B5:$D6) -> 50 | O6: =DGET($B7:O31,O3,$B5:$D6) -> 40 | P6: =DGET($B7:P31,P3,$B5:$D6) -> 18 | Q6: =DGET($B7:Q31,Q3,$B5:$D6) -> 1 | R6: =DGET($B7:R31,R3,$B5:$D6) -> 0 | S6: =DGET($B7:S31,S3,$B5:$D6) -> 22.5 | T6: =DGET($B7:T31,T3,$B5:$D6) -> 22.5 | U6: =DGET($B7:U31,U3,$B5:$D6) -> 26 | V6: =DGET($B7:V31,V3,$B5:$D6) -> 20 | W6: =DGET($B7:W31,W3,$B5:$D6) -> 30 | X6: =DGET($B7:X31,X3,$B5:$D6) -> 60 | Y6: =DGET($B7:Y31,Y3,$B5:$D6) -> 1 | Z6: =DGET($B7:Z31,Z3,$B5:$D6) -> 0.79 | AA6: =DGET($B7:AA31,AA3,$B5:$D6) -> 8 | AB6: =DGET($B7:AB31,AB3,$B5:$D6) -> G1/8 | AC6: =DGET($B7:AC31,AC3,$B5:$D6) -> 100 | AD6: =DGET($B7:AD31,AD3,$B5:$D6) -> 29.5 | AE6: =DGET($B7:AE31,AE3,$B5:$D6) -> 0 | AF6: =DGET($B7:AF31,AF3,$B5:$D6) -> 0 | AG6: =DGET($B7:AG31,AG3,$B5:$D6) -> 30 | AH6: =DGET($B7:AH31,AH3,$B5:$D6) -> 45 | AI6: =DGET($B7:AI31,AI3,$B5:$D6) -> 0.1 | AJ6: =DGET($B7:AJ31,AJ3,$B5:$D6) -> 2950 | AK6: =DGET($B7:AK31,AK3,$B5:$D6) -> 2400 | AL6: =DGET($B7:AL31,AL3,$B5:$D6) -> 3.5 | AM6: =DGET($B7:AM31,AM3,$B5:$D6) -> 16 | AN6: =DGET($B7:AN31,AN3,$B5:$D6) -> 14 | AO6: =DGET($B7:AO31,AO3,$B5:$D6) -> 10 | AP6: =DGET($B7:AP31,AP3,$B5:$D6) -> 24.1 | AQ6: =DGET($B7:AQ31,AQ3,$B5:$D6) -> 0 | AR6: =DGET($B7:AR31,AR3,$B5:$D6) -> 0 | AS6: =DGET($B7:AS31,AS3,$B5:$D6) -> 0.023 | AT6: =DGET($B7:AT31,AT3,$B5:$D6) -> 5 | AU6: =DGET($B7:AU31,AU3,$B5:$D6) -> 7 | AV6: =DGET($B7:AV31,AV3,$B5:$D6) -> 6 | AW6: =DGET($B7:AW31,AW3,$B5:$D6) -> 7 | AX6: =DGET($B7:AX31,AX3,$B5:$D6) -> 504950830 | AY6: =DGET($B7:AY31,AY3,$B5:$D6) -> 504951072 | AZ6: =DGET($B7:AZ31,AZ3,$B5:$D6) -> 404950706 | BA6: =DGET($B7:BA31,BA3,$B5:$D6) -> 0 | BB6: =DGET($B7:BB31,BB3,$B5:$D6) -> 5 | BC6: =DGET($B7:BC31,BC3,$B5:$D6) -> 36 | BD6: =DGET($B7:BD31,BD3,$B5:$D6) -> 5 | BE6: =DGET($B7:BE31,BE3,$B5:$D6) -> 8 | BF6: =DGET($B7:BF31,BF3,$B5:$D6) -> 12 | BG6: =DGET($B7:BG31,BG3,$B5:$D6) -> 35 | BH6: =DGET($B7:BH31,BH3,$B5:$D6) -> 0 | BI6: =DGET($B7:BI31,BI3,$B5:$D6) -> 0 | BJ6: =DGET($B7:BJ31,BJ3,$B5:$D6) -> 0 | BK6: =DGET($B7:BK31,BK3,$B5:$D6) -> 0 | BL6: =DGET($B7:BL31,BL3,$B5:$D6) -> -0.2 | BM6: =DGET($B7:BM31,BM3,$B5:$D6) -> -0.5 | BN6: =DGET($B7:BN31,BN3,$B5:$D6) -> -0.2 | BO6: =DGET($B7:BO31,BO3,$B5:$D6) -> -0.4 | BP6: =DGET($B7:BP31,BP3,$B5:$D6) -> 0 | BQ6: =DGET($B7:BQ31,BQ3,$B5:$D6) -> 0.2 | BR6: =DGET($B7:BR31,BR3,$B5:$D6) -> 0 | BS6: =DGET($B7:BS31,BS3,$B5:$D6) -> 0.2 | BT6: =DGET($B7:BT31,BT3,$B5:$D6) -> 1 | BU6: =DGET($B7:BU31,BU3,$B5:$D6) -> 0.2 | BV6: =DGET($B7:BV31,BV3,$B5:$D6) -> 0.4 | BW6: =DGET($B7:BW31,BW3,$B5:$D6) -> 
B7: =B5 -> A1 | C7: A2 | D7: A3 | E7: A4 | F7: A5 | G7: A6 | H7: A7 | I7: A8 | J7: A9 | K7: A10 | L7: =L5 -> A11 | M7: =M5 -> A12 | N7: =N5 -> A13 | O7: =O5 -> A14 | P7: =P5 -> A15 | Q7: A16 | R7: A17 | S7: A18 | T7: A19 | U7: A20 | V7: A21 | W7: A22 | X7: A23 | Y7: =Y5 -> A24 | Z7: A25 | AA7: =AA5 -> A26 | AB7: =AB5 -> A27 | AC7: =AC5 -> A28 | AD7: =AD5 -> A29 | AE7: =AE5 -> A30 | AF7: =AF5 -> A31 | AG7: A32 | AH7: =AH5 -> A33 | AI7: A34 | AJ7: A35 | AK7: A36 | AL7: A37 | AM7: A38 | AN7: =AN5 -> A39 | AO7: A40 | AP7: A41 | AQ7: =AQ5 -> A42 | AR7: A43 | AS7: A44 | AT7: A45 | AU7: =AU5 -> A46 | AV7: A47 | AW7: =AW5 -> A48 | AX7: A49 | AY7: A50 | AZ7: A51 | BA7: A52 | BB7: A53 | BC7: A54 | BD7: A55 | BE7: A56 | BF7: A57 | BG7: A58 | BH7: A59 | BI7: A60 | BJ7: A61 | BK7: A62 | BL7: A63 | BM7: A64 | BN7: A65 | BO7: A66 | BP7: A67 | BQ7: A68 | BR7: A69 | BS7: A70 | BT7: A71 | BU7: A72 | BV7: A73 | BW7: A74
B8: ='Text - Sprache'!F5 -> Kugelleiste | C8: 18 mm | D8: ='Text - Sprache'!I5 -> hydraulisch | E8: ='Text - Sprache'!L5 -> Riegel | F8: ='Text - Sprache'!N5 -> Klemmschloss | G8: 18 | H8: 17 | I8: 27 | J8: 71 | K8: 0 | L8: 0 | M8: 60 | N8: 50 | O8: 40 | P8: 18 | Q8: 1 | R8: 0 | S8: 22.5 | T8: =S8 -> 22.5 | U8: 26 | V8: 20 | W8: 30 | X8: 60 | Y8: 1 | Z8: 0.79 | AA8: 8 | AB8: G1/8 | AC8: 100 | AD8: 29.5 | AE8: 0 | AF8: 0 | AG8: 30 | AH8: 45 | AI8: 0.1 | AJ8: 2950 | AK8: 2400 | AL8: 3.5 | AM8: 16 | AN8: 14 | AO8: 10 | AP8: 24.1 | AQ8: 0 | AR8: 0 | AS8: 0.023 | AT8: 5 | AU8: 7 | AV8: 6 | AW8: 7 | AX8: 504950830 | AY8: 504951072 | AZ8: 404950706 | BA8: 0 | BB8: 5 | BC8: 36 | BD8: 5 | BE8: 8 | BF8: 12 | BG8: 35 | BH8: 0 | BI8: 0 | BJ8: 0 | BK8: 0 | BL8: -0.2 | BM8: -0.5 | BN8: -0.2 | BO8: -0.4 | BP8: 0 | BQ8: 0.2 | BR8: 0 | BS8: 0.2 | BT8: 1 | BU8: 0.2 | BV8: 0.4
B9: =B8 -> Kugelleiste | C9: 22 mm | D9: =D8 -> hydraulisch | E9: =E8 -> Riegel | F9: =F8 -> Klemmschloss | G9: 22 | H9: =H8 -> 17 | I9: =I8 -> 27 | J9: =J8 -> 71 | K9: 0 | L9: 0 | M9: =M8 -> 60 | N9: =N8 -> 50 | O9: =O8 -> 40 | P9: 22 | Q9: 2 | R9: 0 | S9: 30 | T9: =S9 -> 30 | U9: 32 | V9: 23 | W9: 40 | X9: 80 | Y9: =Y8 -> 1 | Z9: 1.1 | AA9: 8.5 | AB9: =AB8 -> G1/8 | AC9: =AC8 -> 100 | AD9: 37 | AE9: 0 | AF9: 0 | AG9: 38 | AH9: 55 | AI9: =AI8 -> 0.1 | AJ9: =AJ8 -> 2950 | AK9: 3000 | AL9: =AL8 -> 3.5 | AM9: 19 | AN9: 17 | AO9: 12 | AP9: 29 | AQ9: 0 | AR9: 0 | AS9: 0.037 | AT9: 6 | AU9: 8.5 | AV9: 7 | AW9: 8 | AX9: 504950831 | AY9: 504951073 | AZ9: 404950733 | BA9: 0 | BB9: 7 | BC9: 40 | BD9: 5 | BE9: 8 | BF9: 16 | BG9: 46 | BH9: 0 | BI9: 0 | BJ9: 0 | BK9: 0 | BL9: -0.2 | BM9: -0.5 | BN9: -0.2 | BO9: -0.4 | BP9: 0 | BQ9: 0.25 | BR9: 0 | BS9: 0.2 | BT9: 1 | BU9: 0.2 | BV9: 0.4
B10: =B8 -> Kugelleiste | C10: 28 mm | D10: =D8 -> hydraulisch | E10: =E8 -> Riegel | F10: =F8 -> Klemmschloss | G10: 28 | H10: =H8 -> 17 | I10: =I8 -> 27 | J10: =J8 -> 71 | K10: 70 | L10: 0 | M10: =M8 -> 60 | N10: =N8 -> 50 | O10: =O8 -> 40 | P10: 28 | Q10: 2 | R10: 3 | S10: 32.5 | T10: 32.5 | U10: 37 | V10: 28 | W10: 45 | X10: 90 | Y10: =Y8 -> 1 | Z10: 1.5 | AA10: 11 | AB10: G1/4 | AC10: =AC8 -> 100 | AD10: 42 | AE10: 43 | AF10: 0 | AG10: 48 | AH10: 60 | AI10: =AI8 -> 0.1 | AJ10: =AJ8 -> 2950 | AK10: 3000 | AL10: 4.5 | AM10: 24 | AN10: 21.2 | AO10: 14 | AP10: =Berechnung!C153 -> 39 | AQ10: 0 | AR10: =AP10 -> 39 | AS10: 0.072 | AT10: 6 | AU10: 9 | AV10: 7 | AW10: 8.5 | AX10: 504950832 | AY10: 504951074 | AZ10: 404950707 | BA10: 0 | BB10: 9 | BC10: 50 | BD10: 6 | BE10: 12 | BF10: 16 | BG10: 51 | BH10: 0 | BI10: 0 | BJ10: 0 | BK10: 0 | BL10: -0.2 | BM10: -0.5 | BN10: -0.2 | BO10: -0.4 | BP10: 0 | BQ10: 0.25 | BR10: 0 | BS10: 0.2 | BT10: 1 | BU10: 0.2 | BV10: 0.4
B11: =B8 -> Kugelleiste | C11: 36 mm | D11: =D8 -> hydraulisch | E11: =E8 -> Riegel | F11: =F8 -> Klemmschloss | G11: 36 | H11: =H8 -> 17 | I11: =I8 -> 27 | J11: =J8 -> 71 | K11: 70 | L11: 0 | M11: =M8 -> 60 | N11: =N8 -> 50 | O11: =O8 -> 40 | P11: 36 | Q11: 2 | R11: 3 | S11: 35 | T11: 35 | U11: 43 | V11: 34 | W11: 50 | X11: 100 | Y11: =Y8 -> 1 | Z11: 2.5 | AA11: 11 | AB11: =AB10 -> G1/4 | AC11: =AC8 -> 100 | AD11: 53 | AE11: 52.5 | AF11: 0 | AG11: 61 | AH11: 75 | AI11: =AI8 -> 0.1 | AJ11: =AJ8 -> 2950 | AK11: 4000 | AL11: =AL10 -> 4.5 | AM11: 30 | AN11: 27.5 | AO11: 18 | AP11: =Berechnung!C154 -> 51 | AQ11: 0 | AR11: =AP11 -> 51 | AS11: 0.152 | AT11: 8 | AU11: 10 | AV11: 8 | AW11: 10 | AX11: 504950833 | AY11: 504951075 | AZ11: 404950708 | BA11: 0 | BB11: 10 | BC11: 55 | BD11: 6 | BE11: 12 | BF11: 16 | BG11: 56.5 | BH11: 0 | BI11: 0 | BJ11: 0 | BK11: 0 | BL11: -0.2 | BM11: -0.5 | BN11: -0.2 | BO11: -0.4 | BP11: 0 | BQ11: 0.3 | BR11: 0 | BS11: 0.2 | BT11: 2 | BU11: 0.2 | BV11: 0.4
B12: =B8 -> Kugelleiste | C12: 13/16" (20,6 mm) | D12: =D8 -> hydraulisch | E12: =E8 -> Riegel | F12: =F8 -> Klemmschloss | G12: 20.6 | H12: =H8 -> 17 | I12: =I8 -> 27 | J12: =J8 -> 71 | K12: 0 | L12: 0 | M12: =M8 -> 60 | N12: =N8 -> 50 | O12: =O8 -> 40 | P12: 13 | Q12: =Q8 -> 1 | R12: =R8 -> 0 | S12: 22.5 | T12: 22.5 | U12: =U8 -> 26 | V12: =V8 -> 20 | W12: 30 | X12: 60 | Y12: =Y8 -> 1 | Z12: =Z8 -> 0.79 | AA12: 8 | AB12: =AB8 -> G1/8 | AC12: =AC8 -> 100 | AD12: 29.4 | AE12: 0 | AF12: 0 | AG12: 29.4 | AH12: 40 | AI12: =AI8 -> 0.1 | AJ12: 2950 | AK12: =AK8 -> 2400 | AL12: 3.5 | AM12: 16 | AN12: 14 | AO12: 10 | AP12: =AP8 -> 24.1 | AQ12: 0 | AR12: 0 | AS12: =AS8 -> 0.023 | AT12: 5 | AU12: 6.4 | AV12: =AV8 -> 6 | AW12: 6.9 | AX12: 504950834 | AY12: 504951070 | AZ12: 404950749 | BA12: 0 | BB12: 5 | BC12: 36 | BD12: 5 | BE12: 8 | BF12: 12 | BG12: 35 | BH12: 0 | BI12: 0 | BJ12: 0 | BK12: 0 | BL12: -0.6 | BM12: -0.8 | BN12: -0.2 | BO12: -0.4 | BP12: -0.4 | BQ12: 0.25 | BR12: 0 | BS12: 0.2 | BT12: 1 | BU12: 0.2 | BV12: 0.4
B13: =B8 -> Kugelleiste | C13: 1 1/16" (27 mm) | D13: =D8 -> hydraulisch | E13: =E8 -> Riegel | F13: =F8 -> Klemmschloss | G13: 27 | H13: =H8 -> 17 | I13: =I8 -> 27 | J13: =J8 -> 71 | K13: 0 | L13: 0 | M13: =M8 -> 60 | N13: =N8 -> 50 | O13: =O8 -> 40 | P13: 17 | Q13: =Q9 -> 2 | R13: =R9 -> 0 | S13: 30 | T13: 30 | U13: =U9 -> 32 | V13: 23 | W13: 40 | X13: 80 | Y13: =Y8 -> 1 | Z13: =Z9 -> 1.1 | AA13: 11 | AB13: =AB10 -> G1/4 | AC13: =AC8 -> 100 | AD13: 37.4 | AE13: 0 | AF13: 0 | AG13: 38.9 | AH13: 58 | AI13: =AI8 -> 0.1 | AJ13: =AJ8 -> 2950 | AK13: =AK9 -> 3000 | AL13: =AL10 -> 4.5 | AM13: =AM9 -> 19 | AN13: =AN9 -> 17 | AO13: =AO9 -> 12 | AP13: =AP9 -> 29 | AQ13: 0 | AR13: 0 | AS13: 0.037 | AT13: 6 | AU13: 9 | AV13: 7 | AW13: 8.5 | AX13: 504950835 | AY13: 504951071 | AZ13: 404950750 | BA13: 0 | BB13: 7 | BC13: 40 | BD13: 5 | BE13: 8 | BF13: 16 | BG13: 46 | BH13: 0 | BI13: 0 | BJ13: 0 | BK13: 0 | BL13: -0.6 | BM13: -0.8 | BN13: -0.2 | BO13: -0.4 | BP13: -0.4 | BQ13: 0.25 | BR13: 0 | BS13: 0.2 | BT13: 1 | BU13: 0.2 | BV13: 0.4
B14: =B8 -> Kugelleiste | C14: =C8 -> 18 mm | D14: ='Text - Sprache'!J5 -> gefedert | E14: ='Text - Sprache'!M5 -> Schraube | F14: =F8 -> Klemmschloss | G14: =G8 -> 18 | H14: 18 | I14: 28 | J14: 72 | K14: 0 | L14: 71 | M14: 60 | N14: 50 | O14: 40 | P14: =P8 -> 18 | Q14: =Q8 -> 1 | R14: 0 | S14: 27.5 | T14: 12.5 | U14: =V14 -> 20 | V14: 20 | W14: =W8 -> 30 | X14: =X8 -> 60 | Y14: =Y8 -> 1 | Z14: 0.22 | AA14: 0 | AB14: 0 | AC14: 0 | AD14: 29.4 | AE14: 0 | AF14: 25 | AG14: =AG8 -> 30 | AH14: =AH8 -> 45 | AI14: =AI8 -> 0.1 | AJ14: =AJ8 -> 2950 | AK14: 3000 | AL14: 0 | AM14: =AM8 -> 16 | AN14: 14 | AO14: 16 | AP14: 26 | AQ14: 22.4 | AR14: 0 | AS14: 0.027 | AT14: 0 | AU14: 0 | AV14: 0 | AW14: 0 | AX14: 504950940 | AY14: 504951078 | AZ14: =AZ8 -> 404950706 | BA14: 8 | BB14: 0 | BC14: 0 | BD14: 0 | BE14: 0 | BF14: =BF8 -> 12 | BG14: 10 | BH14: 10 | BI14: 20 | BJ14: 6 | BK14: 11 | BL14: =BL8 -> -0.2 | BM14: -0.5 | BN14: -0.2 | BO14: -0.4 | BP14: 0 | BQ14: 0.2 | BR14: 0 | BS14: 0.2 | BT14: 1 | BU14: 0.2 | BV14: 0.4
B15: =B8 -> Kugelleiste | C15: =C9 -> 22 mm | D15: =D14 -> gefedert | E15: =E14 -> Schraube | F15: =F8 -> Klemmschloss | G15: =G9 -> 22 | H15: =H14 -> 18 | I15: =I14 -> 28 | J15: =J14 -> 72 | K15: 0 | L15: 71 | M15: =M14 -> 60 | N15: =N14 -> 50 | O15: =O14 -> 40 | P15: 22 | Q15: 2 | R15: 0 | S15: 40 | T15: 15 | U15: 23 | V15: 23 | W15: =W9 -> 40 | X15: =X9 -> 80 | Y15: =Y8 -> 1 | Z15: 0.42 | AA15: 0 | AB15: 0 | AC15: 0 | AD15: 38 | AE15: 0 | AF15: 31 | AG15: =AG9 -> 38 | AH15: 55 | AI15: =AI8 -> 0.1 | AJ15: =AJ8 -> 2950 | AK15: =AK14 -> 3000 | AL15: 0 | AM15: 19 | AN15: 17 | AO15: 19 | AP15: 35.6 | AQ15: 28.6 | AR15: 0 | AS15: 0.042 | AT15: 0 | AU15: 0 | AV15: 0 | AW15: 0 | AX15: 504950941 | AY15: 504951079 | AZ15: 404950733 | BA15: 10 | BB15: 0 | BC15: 0 | BD15: 0 | BE15: 0 | BF15: 16 | BG15: 24.5 | BH15: 12.5 | BI15: 13 | BJ15: 8 | BK15: 13 | BL15: -0.2 | BM15: -0.5 | BN15: -0.2 | BO15: -0.4 | BP15: 0 | BQ15: 0.25 | BR15: 0 | BS15: 0.2 | BT15: 1 | BU15: 0.2 | BV15: 0.4
B16: =B8 -> Kugelleiste | C16: =C10 -> 28 mm | D16: =D14 -> gefedert | E16: =E14 -> Schraube | F16: =F8 -> Klemmschloss | G16: =G10 -> 28 | H16: =H14 -> 18 | I16: =I14 -> 28 | J16: =J14 -> 72 | K16: 0 | L16: 71 | M16: =M14 -> 60 | N16: =N14 -> 50 | O16: =O14 -> 40 | P16: 28 | Q16: 2 | R16: 0 | S16: 50 | T16: 25 | U16: 28 | V16: 28 | W16: =W10 -> 45 | X16: 90 | Y16: =Y8 -> 1 | Z16: 0.63 | AA16: 0 | AB16: 0 | AC16: 0 | AD16: 48 | AE16: 0 | AF16: 35 | AG16: 48 | AH16: 60 | AI16: =AI8 -> 0.1 | AJ16: =AJ8 -> 2950 | AK16: =AK14 -> 3000 | AL16: 0 | AM16: 24 | AN16: 21.2 | AO16: 24 | AP16: 45 | AQ16: 32 | AR16: 0 | AS16: 0.082 | AT16: 0 | AU16: 0 | AV16: 0 | AW16: 0 | AX16: 504950942 | AY16: 504951080 | AZ16: 404950707 | BA16: 8 | BB16: 0 | BC16: 0 | BD16: 0 | BE16: 0 | BF16: 16 | BG16: 30 | BH16: 15 | BI16: 16 | BJ16: 10 | BK16: 15 | BL16: -0.2 | BM16: -0.5 | BN16: -0.2 | BO16: -0.4 | BP16: 0 | BQ16: 0.25 | BR16: 0 | BS16: 0.2 | BT16: 1 | BU16: 0.2 | BV16: 0.4
B17: =B8 -> Kugelleiste | C17: =C11 -> 36 mm | D17: =D14 -> gefedert | E17: =E14 -> Schraube | F17: =F8 -> Klemmschloss | G17: =G11 -> 36 | H17: =H14 -> 18 | I17: =I14 -> 28 | J17: =J14 -> 72 | K17: 0 | L17: 0 | M17: =M14 -> 60 | N17: =N14 -> 50 | O17: =O14 -> 40 | P17: 36 | Q17: 2 | R17: 0 | S17: 57.5 | T17: 27.5 | U17: 34 | V17: 34 | W17: 50 | X17: 100 | Y17: =Y8 -> 1 | Z17: 1 | AA17: 0 | AB17: 0 | AC17: 0 | AD17: 46 | AE17: 0 | AF17: 0 | AG17: 61 | AH17: 75 | AI17: =AI8 -> 0.1 | AJ17: =AJ8 -> 2950 | AK17: =AK11 -> 4000 | AL17: 0 | AM17: 30 | AN17: 27.5 | AO17: 30 | AP17: =AQ17 -> 43.2 | AQ17: 43.2 | AR17: 0 | AS17: 0.166 | AT17: 0 | AU17: 0 | AV17: 0 | AW17: 0 | AX17: 504950985 | AY17: 504951081 | AZ17: 404950708 | BA17: 10 | BB17: 0 | BC17: 0 | BD17: 0 | BE17: 0 | BF17: 16 | BG17: 35 | BH17: 20 | BI17: 14.5 | BJ17: 10 | BK17: 15 | BL17: -0.2 | BM17: -0.5 | BN17: -0.2 | BO17: -0.4 | BP17: 0 | BQ17: 0.3 | BR17: 0 | BS17: 0.2 | BT17: 2 | BU17: 0.2 | BV17: 0.4
B18: =B8 -> Kugelleiste | C18: =C12 -> 13/16" (20,6 mm) | D18: =D14 -> gefedert | E18: =E14 -> Schraube | F18: =F8 -> Klemmschloss | G18: =G12 -> 20.6 | H18: =H14 -> 18 | I18: =I14 -> 28 | J18: =J14 -> 72 | K18: 0 | L18: 71 | M18: =M14 -> 60 | N18: =N14 -> 50 | O18: =O14 -> 40 | P18: 13 | Q18: 1 | R18: =R14 -> 0 | S18: 27.5 | T18: =T14 -> 12.5 | U18: 20 | V18: 20 | W18: 30 | X18: 60 | Y18: =Y8 -> 1 | Z18: =Z14 -> 0.22 | AA18: 0 | AB18: 0 | AC18: 0 | AD18: 29.4 | AE18: 0 | AF18: =AF14 -> 25 | AG18: 29.4 | AH18: 40 | AI18: =AI8 -> 0.1 | AJ18: =AJ8 -> 2950 | AK18: =AK14 -> 3000 | AL18: 0 | AM18: 16 | AN18: 14 | AO18: =AO14 -> 16 | AP18: 26 | AQ18: 22.4 | AR18: 0 | AS18: =AS14 -> 0.027 | AT18: 0 | AU18: 0 | AV18: 0 | AW18: 0 | AX18: 504950938 | AY18: 504951076 | AZ18: 404950749 | BA18: =BA14 -> 8 | BB18: 0 | BC18: 0 | BD18: 0 | BE18: 0 | BF18: 12 | BG18: 10 | BH18: 10 | BI18: 20 | BJ18: 6 | BK18: 11 | BL18: -0.6 | BM18: -0.8 | BN18: -0.2 | BO18: -0.4 | BP18: -0.4 | BQ18: 0.25 | BR18: 0 | BS18: 0.2 | BT18: 1 | BU18: 0.2 | BV18: 0.4
B19: =B8 -> Kugelleiste | C19: =C13 -> 1 1/16" (27 mm) | D19: =D14 -> gefedert | E19: =E14 -> Schraube | F19: =F8 -> Klemmschloss | G19: =G13 -> 27 | H19: =H14 -> 18 | I19: =I14 -> 28 | J19: =J14 -> 72 | K19: 0 | L19: 71 | M19: =M14 -> 60 | N19: =N14 -> 50 | O19: =O14 -> 40 | P19: 17 | Q19: 2 | R19: =R15 -> 0 | S19: 40 | T19: 15 | U19: 23 | V19: 23 | W19: 40 | X19: 80 | Y19: =Y8 -> 1 | Z19: =Z15 -> 0.42 | AA19: 0 | AB19: 0 | AC19: 0 | AD19: 38 | AE19: 0 | AF19: =AF15 -> 31 | AG19: 38.9 | AH19: 58 | AI19: =AI8 -> 0.1 | AJ19: =AJ8 -> 2950 | AK19: =AK14 -> 3000 | AL19: 0 | AM19: 19 | AN19: 17 | AO19: 19 | AP19: 35.6 | AQ19: 28.6 | AR19: 0 | AS19: =AS15 -> 0.042 | AT19: 0 | AU19: 0 | AV19: 0 | AW19: 0 | AX19: 504950939 | AY19: 504951077 | AZ19: 404950750 | BA19: =BA15 -> 10 | BB19: 0 | BC19: 0 | BD19: 0 | BE19: 0 | BF19: 16 | BG19: 24.5 | BH19: 12.5 | BI19: 13 | BJ19: 8 | BK19: 13 | BL19: -0.6 | BM19: -0.8 | BN19: -0.2 | BO19: -0.4 | BP19: -0.4 | BQ19: 0.25 | BR19: 0 | BS19: 0.2 | BT19: 1 | BU19: 0.2 | BV19: 0.4
B20: ='Text - Sprache'!G5 -> Rollenleiste | C20: =C8 -> 18 mm | D20: =D8 -> hydraulisch | E20: =E8 -> Riegel | F20: =F8 -> Klemmschloss | G20: =G8 -> 18 | H20: 15 | I20: 25 | J20: 70 | K20: 0 | L20: 0 | M20: 60 | N20: 50 | O20: 40 | P20: =P8 -> 18 | Q20: =Q8 -> 1 | R20: =R8 -> 0 | S20: =S8 -> 22.5 | T20: 22.5 | U20: =U8 -> 26 | V20: =V8 -> 20 | W20: 30 | X20: 60 | Y20: =Y8 -> 1 | Z20: 1.14 | AA20: =AA8 -> 8 | AB20: =AB8 -> G1/8 | AC20: 120 | AD20: 29.5 | AE20: 0 | AF20: 0 | AG20: =AG8 -> 30 | AH20: =AH8 -> 45 | AI20: 0.1 | AJ20: 2950 | AK20: =AK8 -> 2400 | AL20: 3.5 | AM20: 16 | AN20: 14 | AO20: 11 | AP20: 25.1 | AQ20: 0 | AR20: 0 | AS20: 0.025 | AT20: =AT8 -> 5 | AU20: 7 | AV20: 6 | AW20: =AW8 -> 7 | AX20: 504950989 | AY20: 504951084 | AZ20: =AZ8 -> 404950706 | BA20: 0 | BB20: =BB8 -> 5 | BC20: 36 | BD20: 5 | BE20: 8 | BF20: 12 | BG20: 35 | BH20: 0 | BI20: 0 | BJ20: 0 | BK20: 0 | BL20: -0.2 | BM20: -0.5 | BN20: -0.2 | BO20: -0.4 | BP20: 0 | BQ20: 0.2 | BR20: 0 | BS20: 0.2 | BT20: 1 | BU20: 0.2 | BV20: 0.4
B21: =B20 -> Rollenleiste | C21: =C9 -> 22 mm | D21: =D8 -> hydraulisch | E21: =E8 -> Riegel | F21: =F8 -> Klemmschloss | G21: =G9 -> 22 | H21: =H20 -> 15 | I21: =I20 -> 25 | J21: =J20 -> 70 | K21: 0 | L21: 0 | M21: =M20 -> 60 | N21: =N20 -> 50 | O21: =O20 -> 40 | P21: =P9 -> 22 | Q21: =Q9 -> 2 | R21: 0 | S21: =S9 -> 30 | T21: 30 | U21: =U9 -> 32 | V21: 23 | W21: 40 | X21: 80 | Y21: =Y8 -> 1 | Z21: 1.85 | AA21: =AA9 -> 8.5 | AB21: =AB8 -> G1/8 | AC21: =AC20 -> 120 | AD21: 37.5 | AE21: 0 | AF21: 0 | AG21: =AG9 -> 38 | AH21: 55 | AI21: =AI8 -> 0.1 | AJ21: =AJ8 -> 2950 | AK21: 3000 | AL21: =AL8 -> 3.5 | AM21: =AM9 -> 19 | AN21: 17 | AO21: 14 | AP21: 31.5 | AQ21: 0 | AR21: 0 | AS21: 0.046 | AT21: 6 | AU21: =AU9 -> 8.5 | AV21: 7 | AW21: =AW9 -> 8 | AX21: 504950990 | AY21: 504951085 | AZ21: 404950733 | BA21: 0 | BB21: 7 | BC21: 40 | BD21: 5 | BE21: 8 | BF21: 16 | BG21: 46 | BH21: 0 | BI21: 0 | BJ21: 0 | BK21: 0 | BL21: -0.2 | BM21: -0.5 | BN21: -0.2 | BO21: -0.4 | BP21: 0 | BQ21: 0.25 | BR21: 0 | BS21: 0.2 | BT21: 1 | BU21: 0.2 | BV21: 0.4
B22: =B20 -> Rollenleiste | C22: =C10 -> 28 mm | D22: =D8 -> hydraulisch | E22: =E8 -> Riegel | F22: =F8 -> Klemmschloss | G22: =G10 -> 28 | H22: =H20 -> 15 | I22: =I20 -> 25 | J22: =J20 -> 70 | K22: 70 | L22: 0 | M22: =M20 -> 60 | N22: =N20 -> 50 | O22: =O20 -> 40 | P22: =P10 -> 28 | Q22: 2 | R22: 3 | S22: 32.5 | T22: 32.5 | U22: =U10 -> 37 | V22: 28 | W22: =W10 -> 45 | X22: 90 | Y22: =Y8 -> 1 | Z22: 3 | AA22: =AA10 -> 11 | AB22: =AB10 -> G1/4 | AC22: =AC20 -> 120 | AD22: 43 | AE22: 43 | AF22: 0 | AG22: =AG10 -> 48 | AH22: 60 | AI22: =AI8 -> 0.1 | AJ22: =AJ8 -> 2950 | AK22: 3000 | AL22: =AL10 -> 4.5 | AM22: 24 | AN22: 21.2 | AO22: 18 | AP22: 39.7 | AQ22: 0 | AR22: =AP22 -> 39.7 | AS22: 0.093 | AT22: 6 | AU22: =AU10 -> 9 | AV22: 7 | AW22: 9 | AX22: 504950991 | AY22: 504951086 | AZ22: 404950707 | BA22: 0 | BB22: 9 | BC22: 50 | BD22: 6 | BE22: 12 | BF22: 16 | BG22: 51 | BH22: 0 | BI22: 0 | BJ22: 0 | BK22: 0 | BL22: -0.2 | BM22: -0.5 | BN22: -0.2 | BO22: -0.4 | BP22: 0 | BQ22: 0.25 | BR22: 0 | BS22: 0.2 | BT22: 1 | BU22: 0.2 | BV22: 0.4
B23: =B20 -> Rollenleiste | C23: =C11 -> 36 mm | D23: =D8 -> hydraulisch | E23: =E8 -> Riegel | F23: =F8 -> Klemmschloss | G23: =G11 -> 36 | H23: =H20 -> 15 | I23: =I20 -> 25 | J23: =J20 -> 70 | K23: 70 | L23: 0 | M23: =M20 -> 60 | N23: =N20 -> 50 | O23: =O20 -> 40 | P23: =P11 -> 36 | Q23: 2 | R23: 3 | S23: 35 | T23: 35 | U23: 43 | V23: 34 | W23: 50 | X23: 100 | Y23: =Y8 -> 1 | Z23: 4.5 | AA23: =AA11 -> 11 | AB23: =AB10 -> G1/4 | AC23: =AC20 -> 120 | AD23: 54.5 | AE23: 54.5 | AF23: 0 | AG23: =AG11 -> 61 | AH23: 75 | AI23: =AI8 -> 0.1 | AJ23: =AJ8 -> 2950 | AK23: 4000 | AL23: =AL10 -> 4.5 | AM23: 30 | AN23: 27.5 | AO23: 22 | AP23: 51 | AQ23: 0 | AR23: =AP23 -> 51 | AS23: 0.181 | AT23: 8 | AU23: =AU11 -> 10 | AV23: 8 | AW23: =AW11 -> 10 | AX23: 504950992 | AY23: 504951087 | AZ23: 404950708 | BA23: 0 | BB23: 10 | BC23: 55 | BD23: 6 | BE23: 12 | BF23: 16 | BG23: 56.5 | BH23: 0 | BI23: 0 | BJ23: 0 | BK23: 0 | BL23: -0.2 | BM23: -0.5 | BN23: -0.2 | BO23: -0.4 | BP23: 0 | BQ23: 0.3 | BR23: 0 | BS23: 0.2 | BT23: 2 | BU23: 0.2 | BV23: 0.4
B24: =B20 -> Rollenleiste | C24: =C12 -> 13/16" (20,6 mm) | D24: =D8 -> hydraulisch | E24: =E8 -> Riegel | F24: =F8 -> Klemmschloss | G24: =G12 -> 20.6 | H24: =H20 -> 15 | I24: =I20 -> 25 | J24: =J20 -> 70 | K24: 0 | L24: 0 | M24: =M20 -> 60 | N24: =N20 -> 50 | O24: =O20 -> 40 | P24: =P12 -> 13 | Q24: 1 | R24: 0 | S24: 22.5 | T24: 22.5 | U24: =U12 -> 26 | V24: 20 | W24: 30 | X24: 60 | Y24: =Y8 -> 1 | Z24: =Z20 -> 1.14 | AA24: =AA12 -> 8 | AB24: =AB8 -> G1/8 | AC24: =AC20 -> 120 | AD24: 29.4 | AE24: 0 | AF24: 0 | AG24: =AG12 -> 29.4 | AH24: 40 | AI24: =AI8 -> 0.1 | AJ24: =AJ8 -> 2950 | AK24: 2400 | AL24: =AL8 -> 3.5 | AM24: 16 | AN24: 14 | AO24: =AO20 -> 11 | AP24: =AP20 -> 25.1 | AQ24: 0 | AR24: 0 | AS24: =AS20 -> 0.025 | AT24: 5 | AU24: =AU12 -> 6.4 | AV24: 6 | AW24: =AW12 -> 6.9 | AX24: 504950987 | AY24: 504951082 | AZ24: 404950749 | BA24: 0 | BB24: 5 | BC24: 36 | BD24: 5 | BE24: 8 | BF24: 12 | BG24: 35 | BH24: 0 | BI24: 0 | BJ24: 0 | BK24: 0 | BL24: -0.6 | BM24: -0.8 | BN24: -0.2 | BO24: -0.4 | BP24: -0.4 | BQ24: 0.25 | BR24: 0 | BS24: 0.2 | BT24: 1 | BU24: 0.2 | BV24: 0.4
B25: =B20 -> Rollenleiste | C25: =C13 -> 1 1/16" (27 mm) | D25: =D8 -> hydraulisch | E25: =E8 -> Riegel | F25: =F8 -> Klemmschloss | G25: =G13 -> 27 | H25: =H20 -> 15 | I25: =I20 -> 25 | J25: =J20 -> 70 | K25: 0 | L25: 0 | M25: =M20 -> 60 | N25: =N20 -> 50 | O25: =O20 -> 40 | P25: =P13 -> 17 | Q25: 2 | R25: 0 | S25: 30 | T25: 30 | U25: 32 | V25: 23 | W25: 40 | X25: 80 | Y25: =Y8 -> 1 | Z25: =Z21 -> 1.85 | AA25: =AA13 -> 11 | AB25: =AB10 -> G1/4 | AC25: =AC20 -> 120 | AD25: 38 | AE25: 0 | AF25: 0 | AG25: =AG13 -> 38.9 | AH25: 58 | AI25: =AI8 -> 0.1 | AJ25: =AJ8 -> 2950 | AK25: 3000 | AL25: =AL10 -> 4.5 | AM25: 19 | AN25: 17 | AO25: =AO21 -> 14 | AP25: =AP21 -> 31.5 | AQ25: 0 | AR25: 0 | AS25: =AS21 -> 0.046 | AT25: 6 | AU25: =AU13 -> 9 | AV25: 7 | AW25: =AW13 -> 8.5 | AX25: 504950988 | AY25: 504951083 | AZ25: 404950750 | BA25: 0 | BB25: 7 | BC25: 40 | BD25: 5 | BE25: 8 | BF25: 16 | BG25: 46 | BH25: 0 | BI25: 0 | BJ25: 0 | BK25: 0 | BL25: -0.6 | BM25: -0.8 | BN25: -0.2 | BO25: -0.4 | BP25: -0.4 | BQ25: 0.25 | BR25: 0 | BS25: 0.2 | BT25: 1 | BU25: 0.2 | BV25: 0.4
B26: =B20 -> Rollenleiste | C26: =C8 -> 18 mm | D26: =D14 -> gefedert | E26: =E14 -> Schraube | F26: =F8 -> Klemmschloss | G26: =G8 -> 18 | H26: 16 | I26: 26 | J26: 70 | K26: 0 | L26: 0 | M26: 60 | N26: 50 | O26: 40 | P26: =P8 -> 18 | Q26: =Q8 -> 1 | R26: =R14 -> 0 | S26: 27.5 | T26: =T14 -> 12.5 | U26: =V26 -> 20 | V26: =V14 -> 20 | W26: =W8 -> 30 | X26: =X8 -> 60 | Y26: =Y8 -> 1 | Z26: 0.6 | AA26: 0 | AB26: 0 | AC26: 0 | AD26: 28.5 | AE26: 0 | AF26: 0 | AG26: =AG8 -> 30 | AH26: =AH8 -> 45 | AI26: =AI8 -> 0.1 | AJ26: =AJ8 -> 2950 | AK26: =AK14 -> 3000 | AL26: 0 | AM26: =AM8 -> 16 | AN26: 14 | AO26: 16 | AP26: 27.5 | AQ26: 0 | AR26: 0 | AS26: 0.028 | AT26: 0 | AU26: 0 | AV26: 0 | AW26: 0 | AX26: 504950995 | AY26: 504951090 | AZ26: =AZ8 -> 404950706 | BA26: 14 | BB26: 0 | BC26: 0 | BD26: 0 | BE26: 0 | BF26: =BF8 -> 12 | BG26: 10 | BH26: 10 | BI26: 20 | BJ26: 6 | BK26: 11 | BL26: =BL8 -> -0.2 | BM26: -0.5 | BN26: -0.2 | BO26: -0.4 | BP26: 0 | BQ26: 0.2 | BR26: 0 | BS26: 0.2 | BT26: 1 | BU26: 0.2 | BV26: 0.4
B27: =B20 -> Rollenleiste | C27: 22 mm | D27: =D14 -> gefedert | E27: =E14 -> Schraube | F27: =F8 -> Klemmschloss | G27: 22 | H27: =H26 -> 16 | I27: =I26 -> 26 | J27: =J26 -> 70 | K27: 0 | L27: 0 | M27: =M26 -> 60 | N27: =N26 -> 50 | O27: =O26 -> 40 | P27: 22 | Q27: 2 | R27: 0 | S27: 40 | T27: 15 | U27: 23 | V27: 23 | W27: =W9 -> 40 | X27: =X9 -> 80 | Y27: =Y8 -> 1 | Z27: 0.9 | AA27: 0 | AB27: 0 | AC27: 0 | AD27: 34.5 | AE27: 0 | AF27: 0 | AG27: =AG9 -> 38 | AH27: 55 | AI27: =AI8 -> 0.1 | AJ27: =AJ8 -> 2950 | AK27: 3000 | AL27: 0 | AM27: 19 | AN27: 17 | AO27: 19 | AP27: 31.5 | AQ27: 0 | AR27: 0 | AS27: 0.052 | AT27: 0 | AU27: 0 | AV27: 0 | AW27: 0 | AX27: 504950996 | AY27: 504951091 | AZ27: 404950733 | BA27: 16 | BB27: 0 | BC27: 0 | BD27: 0 | BE27: 0 | BF27: 16 | BG27: 24.5 | BH27: 12.5 | BI27: 13 | BJ27: 8 | BK27: 13 | BL27: -0.2 | BM27: -0.5 | BN27: -0.2 | BO27: -0.4 | BP27: 0 | BQ27: 0.25 | BR27: 0 | BS27: 0.2 | BT27: 1 | BU27: 0.2 | BV27: 0.4
B28: =B20 -> Rollenleiste | C28: 28 mm | D28: =D14 -> gefedert | E28: =E14 -> Schraube | F28: =F8 -> Klemmschloss | G28: 28 | H28: =H26 -> 16 | I28: =I26 -> 26 | J28: =J26 -> 70 | K28: 0 | L28: 0 | M28: =M26 -> 60 | N28: =N26 -> 50 | O28: =O26 -> 40 | P28: 28 | Q28: 2 | R28: 0 | S28: 50 | T28: 25 | U28: 28 | V28: 28 | W28: =W10 -> 45 | X28: 90 | Y28: =Y8 -> 1 | Z28: 1.4 | AA28: 0 | AB28: 0 | AC28: 0 | AD28: 42 | AE28: 0 | AF28: 0 | AG28: 48 | AH28: 60 | AI28: =AI8 -> 0.1 | AJ28: =AJ8 -> 2950 | AK28: 3000 | AL28: 0 | AM28: 24 | AN28: 21.2 | AO28: 24 | AP28: 38.8 | AQ28: 0 | AR28: 0 | AS28: 0.099 | AT28: 0 | AU28: 0 | AV28: 0 | AW28: 0 | AX28: 504950997 | AY28: 504951092 | AZ28: 404950707 | BA28: 16 | BB28: 0 | BC28: 0 | BD28: 0 | BE28: 0 | BF28: 16 | BG28: 30 | BH28: 15 | BI28: 16 | BJ28: 10 | BK28: 15 | BL28: -0.2 | BM28: -0.5 | BN28: -0.2 | BO28: -0.4 | BP28: 0 | BQ28: 0.25 | BR28: 0 | BS28: 0.2 | BT28: 1 | BU28: 0.2 | BV28: 0.4
B29: =B20 -> Rollenleiste | C29: 36 mm | D29: =D14 -> gefedert | E29: =E14 -> Schraube | F29: =F8 -> Klemmschloss | G29: 36 | H29: =H26 -> 16 | I29: =I26 -> 26 | J29: =J26 -> 70 | K29: 0 | L29: 0 | M29: =M26 -> 60 | N29: =N26 -> 50 | O29: =O26 -> 40 | P29: 36 | Q29: 2 | R29: 0 | S29: 57.5 | T29: 27.5 | U29: 34 | V29: 34 | W29: 50 | X29: 100 | Y29: =Y8 -> 1 | Z29: 2.4 | AA29: 0 | AB29: 0 | AC29: 0 | AD29: 51.5 | AE29: 0 | AF29: 0 | AG29: 61 | AH29: 75 | AI29: =AI8 -> 0.1 | AJ29: =AJ8 -> 2950 | AK29: 4000 | AL29: 0 | AM29: 30 | AN29: 27.5 | AO29: 30 | AP29: 48.15 | AQ29: 0 | AR29: 0 | AS29: 0.189 | AT29: 0 | AU29: 0 | AV29: 0 | AW29: 0 | AX29: 504950998 | AY29: 504951093 | AZ29: 404950708 | BA29: 14 | BB29: 0 | BC29: 0 | BD29: 0 | BE29: 0 | BF29: 16 | BG29: 35 | BH29: 20 | BI29: 14.5 | BJ29: 10 | BK29: 15 | BL29: -0.2 | BM29: -0.5 | BN29: -0.2 | BO29: -0.4 | BP29: 0 | BQ29: 0.3 | BR29: 0 | BS29: 0.2 | BT29: 2 | BU29: 0.2 | BV29: 0.4
B30: =B20 -> Rollenleiste | C30: 13/16" (20,6 mm) | D30: =D14 -> gefedert | E30: =E14 -> Schraube | F30: =F8 -> Klemmschloss | G30: 20.6 | H30: =H26 -> 16 | I30: =I26 -> 26 | J30: =J26 -> 70 | K30: 0 | L30: 0 | M30: =M26 -> 60 | N30: =N26 -> 50 | O30: =O26 -> 40 | P30: 13 | Q30: 1 | R30: 0 | S30: 27.5 | T30: =T14 -> 12.5 | U30: 20 | V30: 20 | W30: 30 | X30: 60 | Y30: =Y8 -> 1 | Z30: =Z26 -> 0.6 | AA30: 0 | AB30: 0 | AC30: 0 | AD30: 28.5 | AE30: 0 | AF30: 0 | AG30: 29.4 | AH30: 40 | AI30: =AI8 -> 0.1 | AJ30: =AJ8 -> 2950 | AK30: 3000 | AL30: 0 | AM30: 16 | AN30: 14 | AO30: =AO26 -> 16 | AP30: =AP26 -> 27.5 | AQ30: 0 | AR30: 0 | AS30: =AS26 -> 0.028 | AT30: 0 | AU30: 0 | AV30: 0 | AW30: 0 | AX30: 504950993 | AY30: 504951088 | AZ30: 404950749 | BA30: =BA26 -> 14 | BB30: 0 | BC30: 0 | BD30: 0 | BE30: 0 | BF30: 12 | BG30: 10 | BH30: 10 | BI30: 20 | BJ30: 6 | BK30: 11 | BL30: -0.6 | BM30: -0.8 | BN30: -0.2 | BO30: -0.4 | BP30: -0.4 | BQ30: 0.25 | BR30: 0 | BS30: 0.2 | BT30: 1 | BU30: 0.2 | BV30: 0.4
B31: =B20 -> Rollenleiste | C31: 1 1/16" (27 mm) | D31: =D14 -> gefedert | E31: =E14 -> Schraube | F31: =F8 -> Klemmschloss | G31: 27 | H31: =H26 -> 16 | I31: =I26 -> 26 | J31: =J26 -> 70 | K31: 0 | L31: 0 | M31: =M26 -> 60 | N31: =N26 -> 50 | O31: =O26 -> 40 | P31: 17 | Q31: 2 | R31: 0 | S31: 40 | T31: =T15 -> 15 | U31: 23 | V31: 23 | W31: 40 | X31: 80 | Y31: =Y8 -> 1 | Z31: =Z27 -> 0.9 | AA31: 0 | AB31: 0 | AC31: 0 | AD31: 34.5 | AE31: 0 | AF31: 0 | AG31: 38.9 | AH31: 58 | AI31: =AI8 -> 0.1 | AJ31: =AJ8 -> 2950 | AK31: 3000 | AL31: 0 | AM31: 19 | AN31: 17 | AO31: =AO27 -> 19 | AP31: =AP27 -> 31.5 | AQ31: 0 | AR31: 0 | AS31: =AS27 -> 0.052 | AT31: 0 | AU31: 0 | AV31: 0 | AW31: 0 | AX31: 504950994 | AY31: 504951089 | AZ31: 404950750 | BA31: =BA27 -> 16 | BB31: 0 | BC31: 0 | BD31: 0 | BE31: 0 | BF31: 16 | BG31: 24.5 | BH31: 12.5 | BI31: 13 | BJ31: 8 | BK31: 13 | BL31: -0.6 | BM31: -0.8 | BN31: -0.2 | BO31: -0.4 | BP31: -0.4 | BQ31: 0.25 | BR31: 0 | BS31: 0.2 | BT31: 1 | BU31: 0.2 | BV31: 0.4
B34: min. Anzahl von Kugel/Rolleneinsätzen | E34: 3
B36: Temperatur / Tragkraft
B37: untere Grenztemperatur °C | E37: 0
B38: Temperaturgrenzen Dichtungen:
B39: Temperatur max. | C39: (Standard) | D39: NBR | E39: 100 | F39: max. Temp. Schraubenfedern!
B40: Temperatur max. | C40: (Viton) | D40: FKM | E40: 200
B41: Temperatur max. | C41: (Kalrez, Isolast) | D41: FFKM | E41: 250
B43: Temperaturgrenzen Tellerfedern:
B44: % der Tragkraft >100-150°C | E44: 0.95
B45: % der Tragkraft >150-200°C | E45: 0.7
B46: % der Tragkraft >200-250°C | E46: 0.6
B48: Temperaturbereich 1 | D48: bis °C | E48: 100 | F48: Standard
B49: Temperaturbereich 2 | D49: bis °C | E49: 150 | F49: Grenztemp. Tellerfedern
B50: Temperaturbereich 3 | D50: bis °C | E50: 200 | F50: Grenztemp. FKM
B51: Temperaturbereich 4 | D51: bis °C | E51: 250 | F51: Grenztemp. FFKM
B53: Gehäusematerial
B54: Standard | E54: ='Text - Sprache'!D41 -> Aluminium | F54: AlMgSi 0,7 (F27)
B55: Option | E55: ='Text - Sprache'!E41 -> Stahl | F55: C45
B57: Gewichtsberechnung
B58: Dichte Aluminium | D58: kg/dm³ | E58: 2.7
B59: Dichte Stahl | D59: kg/dm³ | E59: 7.85

Sheet Berechnung (hidden)
B1: =IF(B3="",B5,B3) -> 0
B2: PDF-Zeichnungen erzeugt? | C2: PDF-Formular Fertigung | D2: Zeichnungsnummern | F2: Musternummer
C3: ="5049592"&"X"&RIGHT(E44)&"XX"&E36 -> 5049592X7XX18 | D3: =IF(C103=1,Artikelstamm!AX6,Artikelstamm!AY6)&"#"&F3 -> 504950830#000000000 | E3: ="892"&E44&E103&E36&"#"&F3 -> 892177118#000000000 | F3: =TEXT(Übergabe!D9,"000000000") -> 000000000
B4: PDF-Kenner aus Penta-Konfiguration | C4: PDF-Formular Montage | E4: Ausprägung der Leiste | F4: Typ-Nr.
C5: ="892"&"X"&RIGHT(E44)&"XX"&E36 -> 892X7XX18 | D5: ="892"&E44&E103&E36 -> 892177118 | E5: =E20&E53&E58&E68&E32 -> L495R | F5: ="92"&E44&"-"&E103&E36 -> 9217-7118
B7: Auswahl Sprache | C7: 1 | D7: =INDEX(B8:B14,C7) -> Deutsch
A8: 1 | B8: ='Text - Sprache'!B7 -> Deutsch | C8: 1
A9: 2 | B9: ='Text - Sprache'!B8 -> English
A10: 3 | B10: ='Text - Sprache'!B9 -> Italiano
A11: 4 | B11: ='Text - Sprache'!B10 -> Français
A12: 5 | B12: ='Text - Sprache'!B11 -> Español
A13: 6 | B13: ='Text - Sprache'!B12 -> Polski
A14: 7 | B14: ='Text - Sprache'!B13 -> 한국어
A15: 8 | B15: ='Text - Sprache'!B14 -> 0
A16: 9 | B16: ='Text - Sprache'!B15 -> 0
A17: 10 | B17: ='Text - Sprache'!B16 -> 0
A18: 11 | B18: ='Text - Sprache'!B17 -> 0
A20: 1. | B20: mögliche Leistenlänge (ohne/inkl. Verschlußschraube) | C20: =IF(D25>D24,D24,IF(D25<D23,D23,D26)) -> 495 | D20: =IF(D25>D24,D24,IF(D25<D23,D23,D26+Artikelstamm!AL6)) -> 498.5 | E20: ="L"&C20 -> L495
B21: max. zulässige Leistenlänge | D21: =IF(C103=1,Artikelstamm!AJ6,Artikelstamm!AK6) -> 2950
B22: minimale Anzahl Inserts | D22: =Artikelstamm!E34 -> 3
B23: min. Leistenlänge (ohne Verschlußschraube) | D23: =Artikelstamm!S6+Artikelstamm!T6+D111+(D22-2)*D112 -> 105
B24: max. Leistenlänge (ohne Verschlußschraube) | D24: =(ROUNDDOWN(((D21-Artikelstamm!S6-Artikelstamm!T6-D111)/D112),0))*D112+D111+Artikelstamm!S6+Artikelstamm!T6 -> 2925
B25: gewünschte Leistenlänge | D25: =ROUND(Eingabe!C11,0) -> 500
B26: errechnete Leistenlänge (ohne Verschlußschraube) | D26: =(C114-2)*D112+D111+Artikelstamm!S6+Artikelstamm!T6 -> 495
A28: 2. | B28: Auswahl Leistenart | C28: 1 | D28: =INDEX(B29:B30,C28) -> Kugelleiste
A29: 1 | B29: =Artikelstamm!B8 -> Kugelleiste | C29: Text Deutsch | D29: =IF(C28=1,'Text - Sprache'!F3,'Text - Sprache'!G3) -> Kugelleiste
A30: 2 | B30: =Artikelstamm!B20 -> Rollenleiste
A32: 2.1 | B32: Auswahl Rollenausrichtung | C32: FALSE | D32: =IF(C32=FALSE,"0°","90°") -> 0° | E32: =IF(OR(C28=1,C32=FALSE),"","X") -> 
C33: Text für Übergabe | D33: =IF(C28=2,D32,"") -> 
A36: 3. | B36: Auswahl Nutbreite | C36: 1 | D36: =INDEX(B37:B42,C36) -> 18 mm | E36: =Artikelstamm!P6 -> 18
A37: 1 | B37: =Artikelstamm!C8 -> 18 mm
A38: 2 | B38: =Artikelstamm!C9 -> 22 mm
A39: 3 | B39: =Artikelstamm!C10 -> 28 mm
A40: 4 | B40: =Artikelstamm!C11 -> 36 mm
A41: 5 | B41: =Artikelstamm!C12 -> 13/16" (20,6 mm)
A42: 6 | B42: =Artikelstamm!C13 -> 1 1/16" (27 mm)
A44: 4. | B44: Auswahl Betätigungsart | C44: 1 | D44: =INDEX(B45:B46,C44) -> hydraulisch | E44: =IF(C48=1,Artikelstamm!H6,Artikelstamm!I6) -> 17
A45: 1 | B45: =Artikelstamm!D8 -> hydraulisch | C45: Text Deutsch | D45: =IF(C44=1,'Text - Sprache'!I3,'Text - Sprache'!J3) -> hydraulisch
A46: 2 | B46: =Artikelstamm!D14 -> gefedert | C46: Kennbuchstabe | D46: =IF(C44=1,"H","F") -> H
A48: 5. | B48: Auswahl Hub | C48: 1 | D48: =INDEX(B49:B50,C48) -> 1 | E48: =IF(C48=2,Artikelstamm!K6,Artikelstamm!J6) -> 71
A49: 1 | B49: =Artikelstamm!Q6 -> 1
A50: 2 | B50: =IF(OR(Artikelstamm!R6=0,Einstellungen!B10=FALSE),"",Artikelstamm!R6) -> 
A53: 6. | B53: Auswahl Befestigung | C53: 1 | D53: =INDEX(B54:B55,C53) -> Riegel | E53: =INDEX(D54:D55,C53) -> R
A54: 1 | B54: =Artikelstamm!E6 -> Riegel | D54: =IF(C44=1,"R","S") -> R
A55: 2 | B55: =Artikelstamm!F6 -> Klemmschloss | D55: K
C56: Text Deutsch | D56: =IF(C53=2,'Text - Sprache'!N3,IF(C44=1,'Text - Sprache'!L3,'Text - Sprache'!M3)) -> Riegel
A58: 7. | B58: Auswahl Kugel/Rollenabstand | C58: =IF(C28=1,'Text - Sprache'!D23,'Text - Sprache'!E23) -> Kugelabstand | D58: =C66 -> 30 | E58: =IF(D58=C60,"","G"&D58) -> 
B59: kleinster Abstand | C59: =Artikelstamm!V6 -> 20 | D59: =(C60-C59)/C62 -> 10
B60: Standardabstand | C60: =Artikelstamm!W6 -> 30 | D60: =(C61-C59)/C62 -> 40
B61: größter Abstand | C61: =Artikelstamm!X6 -> 60 | D61: =(C61-C60)/C62 -> 30
B62: Schrittweite (mm) | C62: =Artikelstamm!Y6 -> 1
B63: Mittelwert Drehfeld | C63: 50 | D63: 0-110
B64: Wert aus Drehfeld | C64: 50
B65: Berechnung Abstand | C65: =IF(C64=C63,C60,C60-((C64-C63)*C62)) -> 30
B66: Abstand mit Grenzen kleinster/größter | C66: =IF(C65<C59,C59,IF(C65>C61,C61,C65)) -> 30
A68: 8. | B68: Auswahl Nuttiefe | D68: =C82 -> 30 | E68: =IF(D68=C75,"","H"&D68) -> 
B69: Kugelleiste mit Tellerfeder möglich? | C69: =AND(C28=1,C36<>4,C44=2,C48=1) -> FALSE | D69: Ausführung mit Tellerfeder?
B70: Drehfeldwert bei min. Nuttiefe Kugell. Tellerfeder | C70: =C79+(C75-C72)/C77 -> 600 | D70: =OR(AND(C69=TRUE,D89>C91),AND(C69=TRUE,C71=TRUE)) -> FALSE
B71: Kugelleiste mit Tellerfeder notwendig? | C71: =C80>C78 -> FALSE
B72: kleinste Nuttiefe (Kugelleiste Tellerfeder) | C72: =Artikelstamm!AF6 -> 0 | D72: =IF(C69=TRUE,"("&C72&")","") -> 
B73: kleinste Nuttiefe (Standard) | C73: =IF(C48=1,Artikelstamm!AD6,Artikelstamm!AE6) -> 29.5
B74: kleinste Nuttiefe | C74: =IF(D70=TRUE,C72,C73) -> 29.5
B75: Standardnuttiefe | C75: =Artikelstamm!AG6 -> 30
B76: größte Nuttiefe | C76: =IF(C103=1,Artikelstamm!AG6,Artikelstamm!AH6) -> 30
B77: Schrittweite (mm) | C77: =Artikelstamm!AI6 -> 0.1
B78: Drehfeldwert bei min. Nuttiefe Kugell. Standard (Druckfeder) | C78: =C79+(C75-C73)/C77 -> 305
B79: Mittelwert Drehfeld | C79: 300 | D79: 0-460
B80: Wert aus Drehfeld | C80: 300
B81: Berechnung Nuttiefe | C81: =IF(C80=C79,C75,C75-((C80-C79)*C77)) -> 30
B82: Nuttiefe innerhalb Grenzen kleinste/größte | C82: =IF(C81<C74,C74,IF(C81>C76,C76,C81)) -> 30
A84: 9.1 | B84: Betriebsdruck | C84: =AND(C85<=C87,C85>=0) -> TRUE | D84: =ROUNDDOWN(IF(C44=1,IF(C84=TRUE,C85,C87),0),0) -> 100
B85: gewünschter Betriebsdruck (bar) | C85: =ROUND(Eingabe!G30,0) -> 100
B86: mögliche Druckreduzierung wg. Temperatur auf (bar) | C86: =C128*C87/C119 -> 100 | D86: =IF(C86=C87,"",CEILING(C86,5)) -> 
B87: max. Betriebsdruck (=Standard) (bar) | C87: =Artikelstamm!AC6 -> 100
A89: 9.2 | B89: max. Einsatztemperatur | C89: =IF(AND(C94>=C90,C94<=C93),C96&" °C",'Text - Sprache'!Q23&"!") -> 100 °C | D89: =IF(AND(C94>=C90,C94<=C93),C96,"high") -> 100 | E89: =IF(D89<=C91,Artikelstamm!M6,IF(AND(D89>C91,D89<=C92),Artikelstamm!N6,Artikelstamm!O6)) -> 60
B90: untere Grenztemperatur °C | C90: =Artikelstamm!E37 -> 0
B91: Standardeinsatztemperatur bis | C91: =Artikelstamm!E39 -> 100 | D91: =AND(C94>=C90,C94<=C91) -> TRUE
B92: Grenztemperatur VITON | C92: =Artikelstamm!E40 -> 200 | D92: =AND(C94>C91,C94<=C92) -> FALSE
B93: Grenztemperatur KALREZ | C93: =Artikelstamm!E41 -> 250 | D93: =AND(C94>C92,C94<=C93) -> FALSE
B94: Wunschtemperatur | C94: =IF(Einstellungen!B10=FALSE,C91,ROUND(Eingabe!G38,0)) -> 100
B96: max Einsatztemperatur | C96: =IF(D124=TRUE,C124,IF(D125=TRUE,C125,IF(D126=TRUE,C126,IF(D127=TRUE,C127,0)))) -> 100
B97: Wunschtemperatur ausserhalb zul. Temperaturbereich | C97: =C90&" - "&C93&" °C" -> 0 - 250 °C | D97: =OR(C94<C90,C94>C93) -> FALSE
B98: Kolbendichtung | C98: =IF(D91=TRUE,C99,IF(D92=TRUE,C100,IF(D93=TRUE,C101,""))) -> NBR | D98: =IF(C98=C99,A99,IF(C98=C100,A100,A101)) -> 1
A99: 1 | B99: N | C99: =Artikelstamm!D39 -> NBR | D99: =IF(C98=C99,B99,IF(C98=C100,B100,B101)) -> N
A100: 2 | B100: V | C100: =Artikelstamm!D40 -> FKM
A101: 3 | B101: K | C101: =Artikelstamm!D41 -> FFKM
A103: 9.3 | B103: Gehäusematerial | C103: 1 | D103: =INDEX(B104:B105,C103) -> Aluminium | E103: =IF(AND(C103=1,D70=TRUE),Artikelstamm!L6,IF(AND(C103=1,D70=FALSE),E48,E89)) -> 71
A104: 1 | B104: =IF(C94>C91,"",Artikelstamm!E54) -> Aluminium | C104: Text Deutsch | D104: =IF(C103=1,'Text - Sprache'!D39,'Text - Sprache'!E39) -> Aluminium
A105: 2 | B105: =IF(Einstellungen!B10=TRUE,Artikelstamm!E55,"") -> Stahl | C105: Material | D105: =IF(C103=1,Artikelstamm!F54,Artikelstamm!F55) -> AlMgSi 0,7 (F27)
B110: Abstände der Inserts | C110: =IF(C28=1,'Text - Sprache'!F23,'Text - Sprache'!G23) -> Kugeleinsatz
B111: Abstand 1.-2. Insert | D111: =IF(D112<Artikelstamm!U6,Artikelstamm!U6,D112) -> 30
B112: Abstand weitere Inserts | D112: =D58 -> 30
B114: Anzahl Inserts | C114: =ROUNDDOWN(((D25-Artikelstamm!S6-Artikelstamm!T6-D111)/D112),0)+2 -> 16 | D114: =IF(C114<C115,C115,C114) -> 16
B115: minimale Anzahl Inserts | C115: =Artikelstamm!E34 -> 3
B118: Tragkraft (abhängig von Einsatztemperatur und Betriebsdruck)
B119: Standardtragkraft (bis 100 °C) je Einsatz kN | C119: =Artikelstamm!Z6 -> 0.79 | D119: 1
B120: ="Tragkraft >"&Artikelstamm!E48&" - "&Artikelstamm!E49&" °C je Einsatz kN" -> Tragkraft >100 - 150 °C je Einsatz kN | C120: =C119*Artikelstamm!E44 -> 0.7505 | D120: =Artikelstamm!E44 -> 0.95
B121: ="Tragkraft >"&Artikelstamm!E49&" - "&Artikelstamm!E50&" °C je Einsatz kN" -> Tragkraft >150 - 200 °C je Einsatz kN | C121: =C119*Artikelstamm!E45 -> 0.553 | D121: =Artikelstamm!E45 -> 0.7
B122: ="Tragkraft >"&Artikelstamm!E50&" - "&Artikelstamm!E51&" °C je Einsatz kN" -> Tragkraft >200 - 250 °C je Einsatz kN | C122: =C119*Artikelstamm!E46 -> 0.474 | D122: =Artikelstamm!E46 -> 0.6
B123: Temperatur min. °C | C123: =Artikelstamm!E37 -> 0
B124: Grenztemperatur 1 °C (Standarddichtung) | C124: =Artikelstamm!E48 -> 100 | D124: =AND(C94>C123,C94<=C124) -> TRUE
B125: Grenztemperatur 2 °C (bei gefederten Leisten) | C125: =Artikelstamm!E49 -> 150 | D125: =AND(C94>C124,C94<=C125) -> FALSE
B126: Grenztemperatur 3 °C (VITON) | C126: =Artikelstamm!E50 -> 200 | D126: =AND(C94>C125,C94<=C126) -> FALSE
B127: Temperatur max. °C (KALREZ) | C127: =Artikelstamm!E51 -> 250 | D127: =AND(C94>C126,C94<=C127) -> FALSE
B128: Tragkraft je Einsatz bei Einsatztemperatur kN | C128: =ROUNDDOWN(IF(D124=TRUE,C119,IF(D125=TRUE,C120,IF(D126=TRUE,C121,IF(D127=TRUE,C122,0)))),2) -> 0.79
B129: Tragkraft je Einsatz bei Betriebsdruck | C129: =ROUNDDOWN(IF(C44=1,C119/C87*D84,C128),2) -> 0.79
B130: Tragkraft je Einsatz inkl. Temperatur und Betriebsdruck | C130: =IF(C44=2,C128,IF(AND(D84<=C87,D84>=D86),C128,C129)) -> 0.79
B131: Gesamttragkraft je Leiste bei Einsatztemperatur kN | C131: =C130*D114 -> 12.64
B133: Ölbedarf | C133: cm³ | D133: =ROUNDUP((POWER(C134,2)*PI()/4*C135/1000*C136),1) -> 1.6
B134: Ø Kolben | C134: =Artikelstamm!AO6 -> 10
B135: Hub (+ 0,2 mm "wahrer Hub") | C135: =D48+0.2 -> 1.2
B136: Anzahl Kolben | C136: =D114 -> 16
B138: Gewicht | C138: kg | D138: =ROUND(C150+D114*C139,1) -> 0.9
B139: Gewicht je Insert inkl. Kolben/Federn (kg) | C139: =Artikelstamm!AS6 -> 0.023
B140: Ø Insertbohrung | C140: =Artikelstamm!AM6 -> 16
B141: Tiefe Insertbohrung | C141: =Artikelstamm!AN6 -> 14
B142: Gewicht je Insertbohrung (kg) | C142: =ROUNDUP(POWER(C140,2)*PI()/4*(C141+0.4)/1000000*C146,4) -> 0.0079
B143: Ø Kolbenbohrung | C143: =Artikelstamm!AO6 -> 10
B144: Tiefe Kolbenbohrung (ohne Insertbohrung) | C144: =Artikelstamm!AP6-Artikelstamm!AN6 -> 10.1
B145: Gewicht je Kolbenbohrung (kg) | C145: =ROUNDUP(POWER(C143,2)*PI()/4*(C144+0.4)/1000000*C146,4) -> 0.0023
B146: Dichte des Leistenmaterials (kg/dm³) | C146: =IF(C103=1,Artikelstamm!E58,Artikelstamm!E59) -> 2.7 | D146: =D103 -> Aluminium
B147: Ø Ölbohrung | C147: =IF(C103=1,Artikelstamm!AT6,Artikelstamm!AV6) -> 5 | D147: =C147 -> 5
B148: Gewicht Ölbohrung (kg) | C148: =ROUNDUP(POWER(C147,2)*PI()/4*(D20-Artikelstamm!AL6)/1000000*C146,4) -> 0.0263
B149: Gewicht des Leistenkörpers (ohne Kolben/Insert-Bohrungen) (kg) | C149: =ROUND(((Artikelstamm!G6)*(D68)*C20/1000000*C146)-C148,4) -> 0.6954
B150: Gewicht des Leistenkörpers (mit allen Bohrungen) (kg) | C150: =C149-D114*(C142+C145) -> 0.5322 | D150: =ROUND(C150,2) -> 0.53
B152: Bohrungstiefe Kolbenbohrung | C152: berechnetes Maß | D152: Standardmaß
B153: Kugelleiste 28 hydraulisch | C153: =IF(AND(C28=1,C36=3,C44=1),IF(D68<44.5,35.5,D68-9),D153) -> 39 | D153: 39
B154: Kugelleiste 36 hydraulisch | C154: =IF(AND(C28=1,C36=4,C44=1),IF(D68<60.7,D68-6,D154),D154) -> 51 | D154: 51
B156: Bohrungstiefe Kolben/Federbohrung | D156: =IF(D70=TRUE,Artikelstamm!AQ6,Artikelstamm!AP6) -> 24.1
B158: Position Ölbohrung Stahlausführung | C158: =C36 -> 1 | D158: =LOOKUP(C158,A160:A165,C160:C165) -> 7
B159: ="gewähltes Material: "&D103 -> gewähltes Material: Aluminium | C159: berechnetes Maß | D159: Standardmaß Alu / Stahl | E159: (Standardmaß Alu)
A160: =A37 -> 1 | B160: 18 mm | C160: =IF(D$68<=C$75,D160,D160+(C$82-C$75)) -> 7 | D160: =IF(C$103=1,Artikelstamm!AU8,Artikelstamm!AW8) -> 7 | E160: =Artikelstamm!AU8 -> 7
A161: 2 | B161: 22 mm | C161: 8.5 | D161: =IF(C$103=1,Artikelstamm!AU9,Artikelstamm!AW9) -> 8.5 | E161: =Artikelstamm!AU9 -> 8.5
A162: 3 | B162: 28 mm | C162: 9 | D162: =IF(C$103=1,Artikelstamm!AU10,Artikelstamm!AW10) -> 9 | E162: =Artikelstamm!AU10 -> 9
A163: 4 | B163: 36 mm | C163: 10 | D163: =IF(C$103=1,Artikelstamm!AU11,Artikelstamm!AW11) -> 10 | E163: =Artikelstamm!AU11 -> 10
A164: 5 | B164: 13/16" (20,6 mm) | C164: 6.4 | D164: =IF(C$103=1,Artikelstamm!AU12,Artikelstamm!AW12) -> 6.4 | E164: =Artikelstamm!AU12 -> 6.4
A165: 6 | B165: 1 1/16" (27 mm) | C165: 9 | D165: =IF(C$103=1,Artikelstamm!AU13,Artikelstamm!AW13) -> 9 | E165: =Artikelstamm!AU13 -> 9
B167: Position Anschlussgewinde Stahlausführung | C167: =C36 -> 1 | D167: =LOOKUP(C167,A169:A174,C169:C174) -> 8
C168: berechnetes Maß | D168: Standardmaß Alu
A169: =A37 -> 1 | B169: 18 mm | C169: =IF(D$68<=C$75,D169,D169+(C$82-C$75)) -> 8 | D169: =Artikelstamm!AA8 -> 8
A170: 2 | B170: 22 mm | C170: 8.5 | D170: =Artikelstamm!AA9 -> 8.5
A171: 3 | B171: 28 mm | C171: 11 | D171: =Artikelstamm!AA10 -> 11
A172: 4 | B172: 36 mm | C172: 11 | D172: =Artikelstamm!AA11 -> 11
A173: 5 | B173: 13/16" (20,6 mm) | C173: 8 | D173: =Artikelstamm!AA12 -> 8
A174: 6 | B174: 1 1/16" (27 mm) | C174: 11 | D174: =Artikelstamm!AA13 -> 11
B176: Anzahl Tellerfedern (gesamt) | D176: =IF(OR(C178=TRUE,C179=TRUE),C177*D114,0) -> 0
B177: Anzahl T-Federn je Paket | C177: =Artikelstamm!BA6 -> 0
B178: Kugelleiste mit Tellerfedern? | C178: =AND(C28=1,C44=2,OR(D70=TRUE,C36=4)) -> FALSE
B179: Rollenleiste gefedert? | C179: =AND(C28=2,C44=2) -> FALSE
B181: Konfigurationszeitstempel | C181: =NOW() -> 2017-04-18T10:33:42.870 | D181: =TEXT(C181,"TT.MM.JJJ hh:mm:ss") -> 18.04.2017 10:33:43
A184: für Zeichnung
B185: Schraubenlänge (gefederte Leisten) | C185: =C186-C187+C188 -> 30 | D185: =IF(AND(C185<15,C185>=12),12,IF(AND(C185>12,C185<20),16,FLOOR(C185,5))) -> 30
B186: Leistenhöhe | C186: =D68 -> 30
B187: Senkungstiefe | C187: =Artikelstamm!BI6 -> 0
B188: Gewindetiefe | C188: =Artikelstamm!BK6 -> 0
A190: für Zeichnung
B191: Toleranz Leistenhöhe angehoben (inkl. Einsatz) | C191: obere Toleranz | D191: =C196+C194 -> 0.2
C192: untere Toleranz | D192: =C195+C193 -> -0.2
B193: untere Hubtoleranz | C193: =Artikelstamm!BU6 -> 0.2
B194: obere Hubtoleranz | C194: =Artikelstamm!BV6 -> 0.4
B195: untere Leistenhöhentoleranz | C195: =Artikelstamm!BO6 -> -0.4
B196: obere Leistenhöhentoleranz | C196: =Artikelstamm!BN6 -> -0.2
A198: für Zeichnung
B199: Schraubenlänge für Riegel (hydraulische Leisten) | C199: =C200+C201 -> 13 | D199: =IF(AND(C199<15,C199>=12),12,IF(AND(C199>12,C199<20),16,FLOOR(C199,5))) -> 12
B200: Gewindetiefe | C200: =Artikelstamm!BE6 -> 8
B201: Riegeldicke | C201: 5

Sheet Text - Sprache (hidden)
A2: A | B2: 1 | C2: 2 | D2: 3 | E2: 4 | F2: 5 | G2: 6 | H2: 7 | I2: 8 | J2: 9 | K2: 10 | L2: 11 | M2: 12 | N2: 13 | O2: 14 | P2: 15 | Q2: 16 | R2: 17
B3: Sprache | C3: =C7 -> Auswahl | D3: =D7 -> Eingabe | E3: =E7 -> Ergebnis | F3: =F7 -> Kugelleiste | G3: =G7 -> Rollenleiste | H3: Betätigungsart | I3: hydraulisch | J3: gefedert | K3: Befestigung | L3: Riegel | M3: Schraube | N3: Klemmschloss | O3: Nutbreite | P3: Nuttiefe | Q3: Leistenlänge | R3: gewünschte Leistenlänge
B4: ="SA"&B2 -> SA1 | C4: ="SA"&C2 -> SA2 | D4: ="SA"&D2 -> SA3 | E4: SA4 | F4: SA5 | G4: SA6 | H4: SA7 | I4: SA8 | J4: SA9 | K4: SA10 | L4: SA11 | M4: SA12 | N4: SA13 | O4: SA14 | P4: SA15 | Q4: SA16 | R4: SA17
B5: =Berechnung!D7 -> Deutsch | C5: =DGET($B6:C17,C2,$B4:$B5) -> Auswahl | D5: =DGET($B6:D17,D2,$B4:$B5) -> Eingabe | E5: =DGET($B6:E17,E2,$B4:$B5) -> Ergebnis | F5: =DGET($B6:F17,F2,$B4:$B5) -> Kugelleiste | G5: =DGET($B6:G17,G2,$B4:$B5) -> Rollenleiste | H5: =DGET($B6:H17,H2,$B4:$B5) -> Betätigungsart | I5: =DGET($B6:I17,I2,$B4:$B5) -> hydraulisch | J5: =DGET($B6:J17,J2,$B4:$B5) -> gefedert | K5: =DGET($B6:K17,K2,$B4:$B5) -> Befestigung | L5: =DGET($B6:L17,L2,$B4:$B5) -> Riegel | M5: =DGET($B6:M17,M2,$B4:$B5) -> Schraube | N5: =DGET($B6:N17,N2,$B4:$B5) -> Klemmschloss | O5: =DGET($B6:O17,O2,$B4:$B5) -> Nutbreite | P5: =DGET($B6:P17,P2,$B4:$B5) -> Nuttiefe | Q5: =DGET($B6:Q17,Q2,$B4:$B5) -> Leistenlänge | R5: =DGET($B6:R17,R2,$B4:$B5) -> gewünschte Leistenlänge
B6: =B4 -> SA1 | C6: =C4 -> SA2 | D6: =D4 -> SA3 | E6: =E4 -> SA4 | F6: SA5 | G6: SA6 | H6: SA7 | I6: SA8 | J6: =J4 -> SA9 | K6: SA10 | L6: SA11 | M6: SA12 | N6: SA13 | O6: SA14 | P6: SA15 | Q6: SA16 | R6: SA17
B7: Deutsch | C7: Auswahl | D7: Eingabe | E7: Ergebnis | F7: Kugelleiste | G7: Rollenleiste | H7: Betätigungsart | I7: hydraulisch | J7: gefedert | K7: Befestigung | L7: Riegel | M7: Schraube | N7: Klemmschloss | O7: Nutbreite | P7: Nuttiefe | Q7: Leistenlänge | R7: gewünschte Leistenlänge
B8: English | C8: Selection | D8: Input | E8: Output | F8: Ball bar | G8: Roller bar | H8: Actuation | I8: hydraulic | J8: spring loaded | K8: Fastening | L8: Fastening plate | M8: Screw | N8: Wedge lock | O8: Slot width | P8: Slot depth | Q8: Bar lenght | R8: desired bar lenght
B9: Italiano | C9: Selezione | D9: Inserimento | E9: Risultato | F9: Guida a sfere | G9: Guida a rulli | H9: Azionamento | I9: idraulico | J9: a molle | K9: Fissaggio | L9: Piastrina di fissaggio | M9: Vite | N9: Cuneo di fissaggio | O9: Larghezza cava | P9: Profondità cava | Q9: Lunghezza guida | R9: Lunghezza guida desiderata
B10: Français | C10: Sélection | D10: Entrée | E10: Résultat | F10: Tasseau à billes | G10: Tasseau à rouleaux | H10: Mode opératoire | I10: hydraulique | J10: chargé par ressort | K10: Fixation | L10: Plaque de fixation | M10: Vis | N10: Verrou | O10: Largeur de la rainure | P10: Profondeur de la rainure | Q10: Longueur du tasseau | R10: Longeur du tasseau désirée
B11: Español | C11: Selección | D11: Entrada | E11: Résultado | F11: Regleta de bolas | G11: Regleta de rodillos | H11: Modo operativo | I11: idraúlico | J11: con muelle | K11: Fijación | L11: Placa de fijación | M11: Tornillo | N11: Cerrojo | O11: Ancho de la ranura | P11: aaprofundid de la ranura | Q11: Longitud de la regleta | R11: Longitud deseada de la regleta
B12: Polski | C12: Wybierz | D12: Wprowadź | E12: Wynik | F12: Listwy kulkowe | G12: Listwy rolkowe | H12: Sterowanie | I12: Hydrauliczne | J12: Sprężynowe | K12: Zamocowanie | L12: Rygiel | M12: Śruba | N12: Zamek klinowy | O12: Szerokość rowka | P12: Głębokość rowka | Q12: Długość listwy | R12: Oczeiwana długość listwy
B13: 한국어 | C13: 선택 | D13: 입력 | E13: 결과 | F13: 볼 바 | G13: 롤러 바 | H13: 작동 | I13: 유압식 | J13: 스프링력 | K13: 고정 | L13: 고정판 | M13: 스크류 | N13: 웨지(쐐기) 잠금 | O13: 슬롯 너비 | P13: 슬롯 깊이 | Q13: 바 길이 | R13: 희망 바 길이
A20: B | B20: 1 | C20: 2 | D20: 3 | E20: 4 | F20: 5 | G20: 6 | H20: 7 | I20: 8 | J20: 9 | K20: 10 | L20: 11 | M20: 12 | N20: 13 | O20: 14 | P20: 15 | Q20: 16 | R20: 17
B21: Sprache | C21: =C25 -> Hub | D21: Kugelabstand | E21: Rollenabstand | F21: Kugeleinsatz | G21: Rolleneinsatz | H21: Tragkraft pro Einsatz | I21: Gesamttragkraft | J21: Sprache | K21: Rollenausrichtung | L21: =L25 -> Tellerfedern | M21: Variante mit | N21: Betriebsdruck | O21: Druck zu hoch! | P21: Einsatztemperatur | Q21: unzulässige Temperatur | R21: Optionen
B22: ="SB"&B20 -> SB1 | C22: ="SB"&C20 -> SB2 | D22: SB3 | E22: SB4 | F22: SB5 | G22: SB6 | H22: SB7 | I22: SB8 | J22: SB9 | K22: SB10 | L22: SB11 | M22: SB12 | N22: SB13 | O22: SB14 | P22: SB15 | Q22: SB16 | R22: SB17
B23: =B5 -> Deutsch | C23: =DGET($B24:C35,C20,$B22:$B23) -> Hub | D23: =DGET($B24:D35,D20,$B22:$B23) -> Kugelabstand | E23: =DGET($B24:E35,E20,$B22:$B23) -> Rollenabstand | F23: =DGET($B24:F35,F20,$B22:$B23) -> Kugeleinsatz | G23: =DGET($B24:G35,G20,$B22:$B23) -> Rolleneinsatz | H23: =DGET($B24:H35,H20,$B22:$B23) -> Tragkraft pro Einsatz | I23: =DGET($B24:I35,I20,$B22:$B23) -> Gesamttragkraft | J23: =DGET($B24:J35,J20,$B22:$B23) -> Sprache | K23: =DGET($B24:K35,K20,$B22:$B23) -> Rollenausrichtung | L23: =DGET($B24:L35,L20,$B22:$B23) -> Tellerfedern | M23: =DGET($B24:M35,M20,$B22:$B23) -> Variante mit | N23: =DGET($B24:N35,N20,$B22:$B23) -> Betriebsdruck | O23: =DGET($B24:O35,O20,$B22:$B23) -> Druck zu hoch! | P23: =DGET($B24:P35,P20,$B22:$B23) -> Einsatztemperatur | Q23: =DGET($B24:Q35,Q20,$B22:$B23) -> unzulässige Temperatur | R23: =DGET($B24:R35,R20,$B22:$B23) -> Optionen
B24: =B22 -> SB1 | C24: SB2 | D24: SB3 | E24: SB4 | F24: SB5 | G24: SB6 | H24: SB7 | I24: SB8 | J24: SB9 | K24: SB10 | L24: SB11 | M24: SB12 | N24: SB13 | O24: SB14 | P24: SB15 | Q24: SB16 | R24: SB17
B25: =B7 -> Deutsch | C25: Hub | D25: Kugelabstand | E25: Rollenabstand | F25: Kugeleinsatz | G25: Rolleneinsatz | H25: Tragkraft pro Einsatz | I25: Gesamttragkraft | J25: Sprache | K25: Rollenausrichtung | L25: Tellerfedern | M25: Variante mit | N25: Betriebsdruck | O25: Druck zu hoch! | P25: Einsatztemperatur | Q25: unzulässige Temperatur | R25: Optionen
B26: =B8 -> English | C26: Stroke | D26: Distance of balls | E26: Distance of rollers | F26: Ball insert | G26: Roller insert | H26: Load capacity per insert | I26: Total load capacity | J26: Language | K26: Roller orientation | L26: disc springs | M26: version with | N26: Operating pressure | O26: Pressure to high! | P26: Operation temperature | Q26: invalid temperatur | R26: Options
B27: =B9 -> Italiano | C27: Corsa | D27: Distanza fra le sfere | E27: Distanza fra i rulli | F27: Inserto a sfera | G27: Inserto a rullo | H27: Cpacità di carico per inserto | I27: Capacità di carico totale | J27: Lingua | K27: Orientamento dei rulli | L27: molle a tazza | M27: variante con | N27: Pressione di esercizio | O27: Pressione troppo elevata! | P27: Temperatura di funzionamento | Q27: temperatura non valida | R27: Opzioni
B28: Français | C28: Course | D28: Ecart des billes | E28: Ecart des rouleaux | F28: Insert à billes | G28: Insert à rouleaux | H28: Force portante par insert | I28: Force portante totale | J28: Langue | K28: Orientation des rouleaux | L28: Rondelles Belleville | M28: Version avec | N28: Pression d'utilisation | O28: Pression trop élevée ! | P28: Température d'utilisation | Q28: Température inadmissible | R28: Options
B29: Español | C29: Carrera | D29: Espacio de las bolas | E29: Espacio de los rodillos | F29: Inserto para bolas | G29: Inserto para rodillos | H29: Capacidad de carga / inserto | I29: Capacidad de cargo total | J29: Lengua | K29: Orientación de los rodillos | L29: Resortes Belleville | M29: Versión con | N29: Presión de trabajo | O29: Presión demasiado alta | P29: Temperatura de trabajo | Q29: Temperatura no es válida | R29: Opciones
B30: Polski | C30: Skok | D30: Rozstaw kulek | E30: Rozstaw rolek | F30: Wkład kulkowy | G30: Wkład rolkowy | H30: Nośność / wkład | I30: Nośność całkowita | J30: Język | K30: Kierunek rolek | L30: Sprężyny talerzowe | M30: Wersja z | N30: Ciśnienie zasilania | O30: Ciśnienie za wysokie! | P30: Temperatura pracy | Q30: Niedopuszczalna temeratura | R30: Opcje
B31: 한국어 | C31: 스트로크 | D31: 볼의 거리 | E31: 롤러의 거리 | F31: 볼 인써트 | G31: 롤러 인써트 | H31: 인써트 하중용량 | I31: 총 하중용량 | J31: 언어 | K31: 롤러 방향 | L31: 접시 스프링 | M31: 버전 | N31: 작동 압력 | O31: 압력이 높다! | P31: 작동 온도 | Q31: 허용하지 않은 온도 | R31: 옵션
B32: 0
B33: 0
B34: 0
B35: 0
A38: C | B38: 1 | C38: 2 | D38: 3 | E38: 4 | F38: 5 | G38: 6 | H38: 7 | I38: 8 | J38: 9 | K38: 10 | L38: 11 | M38: 12 | N38: 13 | O38: 14 | P38: 15 | Q38: 16 | R38: 17
B39: Sprache | C39: =C43 -> Gehäusematerial | D39: =D43 -> Aluminium | E39: =E43 -> Stahl | F39: Kolbendichtung | G39: Anschlussgewinde | H39: inkl. | I39: Verschlussschraube | J39: reduzierter Betriebsdruck | K39: empfohlen | L39: =L43 -> Ölbedarf | M39: Masse | N39: Zeichnungsnummer | O39: Bearbeiter | P39: nicht verfügbar | Q39: Bearbeiter eintragen! | R39: keine Berechtigung!
B40: ="SC"&B38 -> SC1 | C40: ="SC"&C38 -> SC2 | D40: SC3 | E40: SC4 | F40: SC5 | G40: SC6 | H40: SC7 | I40: SC8 | J40: SC9 | K40: SC10 | L40: SC11 | M40: SC12 | N40: SC13 | O40: SC14 | P40: SC15 | Q40: SC16 | R40: SC17
B41: =B5 -> Deutsch | C41: =DGET($B42:C53,C38,$B40:$B41) -> Gehäusematerial | D41: =DGET($B42:D53,D38,$B40:$B41) -> Aluminium | E41: =DGET($B42:E53,E38,$B40:$B41) -> Stahl | F41: =DGET($B42:F53,F38,$B40:$B41) -> Kolbendichtung | G41: =DGET($B42:G53,G38,$B40:$B41) -> Anschlussgewinde | H41: =DGET($B42:H53,H38,$B40:$B41) -> inkl. | I41: =DGET($B42:I53,I38,$B40:$B41) -> Verschlussschraube | J41: =DGET($B42:J53,J38,$B40:$B41) -> reduzierter Betriebsdruck | K41: =DGET($B42:K53,K38,$B40:$B41) -> empfohlen | L41: =DGET($B42:L53,L38,$B40:$B41) -> Ölbedarf | M41: =DGET($B42:M53,M38,$B40:$B41) -> Masse | N41: =DGET($B42:N53,N38,$B40:$B41) -> Zeichnungsnummer | O41: =DGET($B42:O53,O38,$B40:$B41) -> Bearbeiter | P41: =DGET($B42:P53,P38,$B40:$B41) -> nicht verfügbar | Q41: =DGET($B42:Q53,Q38,$B40:$B41) -> Bearbeiter eintragen! | R41: =DGET($B42:R53,R38,$B40:$B41) -> keine Berechtigung!
B42: =B40 -> SC1 | C42: =C40 -> SC2 | D42: =D40 -> SC3 | E42: =E40 -> SC4 | F42: =F40 -> SC5 | G42: =G40 -> SC6 | H42: SC7 | I42: SC8 | J42: SC9 | K42: SC10 | L42: SC11 | M42: SC12 | N42: =N40 -> SC13 | O42: =O40 -> SC14 | P42: =P40 -> SC15 | Q42: =Q40 -> SC16 | R42: =R40 -> SC17
B43: =B7 -> Deutsch | C43: Gehäusematerial | D43: Aluminium | E43: Stahl | F43: Kolbendichtung | G43: Anschlussgewinde | H43: inkl. | I43: Verschlussschraube | J43: reduzierter Betriebsdruck | K43: empfohlen | L43: Ölbedarf | M43: Masse | N43: Zeichnungsnummer | O43: Bearbeiter | P43: nicht verfügbar | Q43: Bearbeiter eintragen! | R43: keine Berechtigung!
B44: =B8 -> English | C44: Material of housing | D44: aluminium | E44: steel | F44: Piston sealing | G44: Connecting thread | H44: incl. | I44: Plug screw | J44: reduced operating pressure | K44: recommended | L44: Oil consumption | M44: Weight | N44: Drawing number | O44: editor | P44: not available | Q44: fill in editor! | R44: no authorization!
B45: =B9 -> Italiano | C45: Materiale del corpo esterno | D45: alluminio | E45: acciaio | F45: Guarnizioni pistone | G45: Filettatura raccordo | H45: incl. | I45: Tappo a vite | J45: pressione di esercizio ridotta | K45: raccomandata | L45: Consumo olio | M45: Peso | N45: No. Disegno | O45: utente | P45: indisponibile | Q45: Inserisci l'utente | R45: nessuna autorizzazione
B46: Français | C46: Matériau du carter | D46: Aluminium | E46: Acier | F46: Garniture de piston | G46: Filetage de raccordement incl. | H46: incl. | I46: Vis de fermeture | J46: Pression d'utilisation réduite | K46: recommandée | L46: Consommation d'huile | M46: Poids | N46: N°. de plan | O46: Editeur | P46: pas disponible | Q46: remplir dans l'éditeur! | R46: aucune autorisation!
B47: Español | C47: Material del cárter | D47: Aluminio | E47: Acero | F47: Empaque del pistón | G47: Rosca de conexión | H47: incl. | I47: Tornillo de cierre | J47: Presión de trabajo reducida | K47: recomendada | L47: Consumo ólio | M47: Peso | N47: No. dibujo | O47: Editor | P47: no disponible | Q47: llenar en el editor! | R47: sin autorización!
B48: Polski | C48: Materiał obudowy | D48: Aluminium | E48: Stal | F48: Uszczelnienie tłoków | G48: Gwint przyłączeniowy | H48: zawiera | I48: śrubunek | J48: Zmniejszyć ciśnienie | K48: zalecenie | L48: Zapotrzebowanie oleju | M48: Masa | N48: Nr rysunku | O48: Edytor | P48: nie dostępne | Q48: wypełnić w edytorze! | R48: brak uprawnień!
B49: 한국어 | C49: 하우징 재질 | D49: 알루미늄 | E49: 스틸 | F49: 피스톤 씰링 | G49: 연결 나사 | H49: 포함 | I49: 플러그 스크류 | J49: 작동 압력 감소 | K49: 추천 | L49: 기름 소비량 | M49: 무게 | N49: 도면 번호 | O49: 편집자 | P49: 이용 불가능 | Q49: 편집자를 쓰시오! | R49: 권한 없음!
B50: 0
B51: 0
B52: 0
B53: 0
A56: D | B56: 1 | C56: 2 | D56: 3 | E56: 4 | F56: 5 | G56: 6 | H56: 7 | I56: 8 | J56: 9 | K56: 10 | L56: 11 | M56: 12 | N56: 13 | O56: 14 | P56: 15 | Q56: 16 | R56: 17
B57: Sprache | C57: =C61 -> keine gültige Musternummer! | D57: =D61 -> zuerst PDF erzeugen! | E57: Listenpreis | F57: Preisbasis | G57: Preisgruppe | H57: Es sind bereits PDF-Dokumente vorhanden! | I57: Sollen diese ersetzt werden? | J57: PDF erstellen | K57: Abbruch | L57: Konfiguration einlesen | M57: Konfiguration | N57: Vorgang erfolgreich abgeschlossen | O57: Es ist ein Fehler aufgetreten! | P57: Bitte warten… | Q57: Merkmalsausprägung | R57: Währungsfaktor
B58: ="SD"&B56 -> SD1 | C58: ="SD"&C56 -> SD2 | D58: SD3 | E58: SD4 | F58: SD5 | G58: SD6 | H58: SD7 | I58: SD8 | J58: SD9 | K58: SD10 | L58: SD11 | M58: SD12 | N58: SD13 | O58: SD14 | P58: SD15 | Q58: SD16 | R58: SD17
B59: =B5 -> Deutsch | C59: =DGET($B60:C71,C56,$B58:$B59) -> keine gültige Musternummer! | D59: =DGET($B60:D71,D56,$B58:$B59) -> zuerst PDF erzeugen! | E59: =DGET($B60:E71,E56,$B58:$B59) -> Listenpreis | F59: =DGET($B60:F71,F56,$B58:$B59) -> Preisbasis | G59: =DGET($B60:G71,G56,$B58:$B59) -> Preisgruppe | H59: =DGET($B60:H71,H56,$B58:$B59) -> Es sind bereits PDF-Dokumente vorhanden! | I59: =DGET($B60:I71,I56,$B58:$B59) -> Sollen diese ersetzt werden? | J59: =DGET($B60:J71,J56,$B58:$B59) -> PDF erstellen | K59: =DGET($B60:K71,K56,$B58:$B59) -> Abbruch | L59: =DGET($B60:L71,L56,$B58:$B59) -> Konfiguration einlesen | M59: =DGET($B60:M71,M56,$B58:$B59) -> Konfiguration | N59: =DGET($B60:N71,N56,$B58:$B59) -> Vorgang erfolgreich abgeschlossen | O59: =DGET($B60:O71,O56,$B58:$B59) -> Es ist ein Fehler aufgetreten! | P59: =DGET($B60:P71,P56,$B58:$B59) -> Bitte warten… | Q59: =DGET($B60:Q71,Q56,$B58:$B59) -> Merkmalsausprägung | R59: =DGET($B60:R71,R56,$B58:$B59) -> Währungsfaktor
B60: =B58 -> SD1 | C60: =C58 -> SD2 | D60: =D58 -> SD3 | E60: SD4 | F60: SD5 | G60: SD6 | H60: SD7 | I60: SD8 | J60: SD9 | K60: SD10 | L60: SD11 | M60: SD12 | N60: SD13 | O60: SD14 | P60: SD15 | Q60: SD16 | R60: SD17
B61: =B7 -> Deutsch | C61: keine gültige Musternummer! | D61: zuerst PDF erzeugen! | E61: Listenpreis | F61: Preisbasis | G61: Preisgruppe | H61: Es sind bereits PDF-Dokumente vorhanden! | I61: Sollen diese ersetzt werden? | J61: PDF erstellen | K61: Abbruch | L61: Konfiguration einlesen | M61: Konfiguration | N61: Vorgang erfolgreich abgeschlossen | O61: Es ist ein Fehler aufgetreten! | P61: Bitte warten… | Q61: Merkmalsausprägung | R61: Währungsfaktor
B62: =B8 -> English | C62: invalid sample number! | D62: First create PDF! | E62: List price | F62: Issue of prices | G62: Price category | H62: PDF documents already exist! | I62: Should these be replaced? | J62: Create PDF | K62: Abort | L62: read Configuration | M62: Configuration | N62: Operation completed successfully | O62: There was an error! | P62: please wait… | Q62: characteristic value | R62: currency factor
B63: Italiano | C63: modello non è un numero valido! | D63: Innanzitutto creare PDF | E63: Listino | F63: Base prezzi | G63: Gruppo Prezzi | H63: I documenti PDF già esistenti! | I63: Questi dovrebbero essere sostituiti? | J63: Creare PDF | K63: Abortire | L63: Leggi di configurazione | M63: Configurazione | N63: Operazione completata con successo | O63: Si è verificato un errore! | P63: Attendere prego ... | Q63: Caratteristica espressione | R63: fattore di valuta
B64: Français | C64: invalid sample number! | D64: D'abord créer des PDF! | E64: Prix du catalogue | F64: Base de prix | G64: Groupe de prix | H64: Des documents PDF existent déjà! | I64: Devraient-ils être remplacés? | J64: Créer des PDF | K64: Avorter | L64: Lire la configuration | M64: Configuration | N64: L'opération s'est terminée avec succès | O64: Il y avait une erreur! | P64: S'il vous plaît patienter ... | Q64: expression de caractéristique | R64: facteur de devises
B65: Español | C65: invalid sample number! | D65: En primer lugar crear PDF! | E65: Precio de catálogo | F65: Precio base | G65: Precio grupo | H65: Documentos PDF ya existe! | I65: Si estos ser reemplazado? | J65: Crear PDF | K65: Abortar | L65: leer la configuración | M65: Configuración | N65: La operación se realizó con éxito | O65: Hubo un error! | P65: Por favor, espere ... | Q65: Característica expresión | R65: factor de moneda
B66: Polski | C66: invalid sample number! | D66: Najpierw stwórz PDF! | E66: Cena cennikowa | F66: Cena bazowa | G66: Grupa cenowa | H66: Dokument PDF już istnieje! | I66: Należy je zastąpić? | J66: Stwórz PDF | K66: Anuluj | L66: Wczytaj konfigurację | M66: Konfiguracja | N66: Operacja zakończona pomyślnie | O66: Napotkano błąd! | P66: Proszę czekać… | Q66: Wartość charakterystyczna | R66: współczynnik waluty
B67: 한국어 | C67: invalid sample number! | D67: 먼저 PDF를 생성하십시오! | E67: 가격표 | F67: 발행가 | G67: 가격표 | H67: PDF 파일이 이미 있습니다! | I67: 변경하시겠습니까? | J67: PDF 출력 | K67: 취소 | L67: 환경설정 실행 | M67: 환경설정 | N67: 실행이 완료 되었습니다 | O67: 오류가 있습니다! | P67: 기다려 주십시오… | Q67: 고유값 | R67: 통용 화폐
B68: 0
B69: 0
B70: 0
B71: 0
A74: E | B74: 1 | C74: 2 | D74: 3 | E74: 4 | F74: 5 | G74: 6 | H74: 7 | I74: 8 | J74: 9 | K74: 10 | L74: 11 | M74: 12 | N74: 13 | O74: 14 | P74: 15 | Q74: 16 | R74: 17
B75: Sprache | C75: =C79 -> Währungssymbol | D75: =D79 -> Faktor (universal) | E75: Pflichtfelder | F75: ACHTUNG | G75: Diese Datei enthält Makros! Die Ausführung von Makros wird jedoch verhindert! Bitte stellen Sie sicher, dass Makros ausgeführt werden können! | H75: 0 | I75: 0 | J75: 0 | K75: 0 | L75: 0 | M75: 0 | N75: 0 | O75: 0 | P75: 0 | Q75: 0 | R75: 0
B76: ="SE"&B74 -> SE1 | C76: ="SD"&C74 -> SD2 | D76: SD3 | E76: SD4 | F76: SD5 | G76: SD6 | H76: SD7 | I76: SD8 | J76: SD9 | K76: SD10 | L76: SD11 | M76: SD12 | N76: SD13 | O76: SD14 | P76: SD15 | Q76: SD16 | R76: SD17
B77: =B5 -> Deutsch | C77: =DGET($B78:C89,C74,$B76:$B77) -> Währungssymbol | D77: =DGET($B78:D89,D74,$B76:$B77) -> Faktor (universal) | E77: =DGET($B78:E89,E74,$B76:$B77) -> Pflichtfelder | F77: =DGET($B78:F89,F74,$B76:$B77) -> ACHTUNG | G77: =DGET($B78:G89,G74,$B76:$B77) -> Diese Datei enthält Makros! Die Ausführung von Makros wird jedoch verhindert! Bitte stellen Sie sicher, dass Makros ausgeführt werden können! | H77: =DGET($B78:H89,H74,$B76:$B77) ->  | I77: =DGET($B78:I89,I74,$B76:$B77) ->  | J77: =DGET($B78:J89,J74,$B76:$B77) ->  | K77: =DGET($B78:K89,K74,$B76:$B77) ->  | L77: =DGET($B78:L89,L74,$B76:$B77) ->  | M77: =DGET($B78:M89,M74,$B76:$B77) ->  | N77: =DGET($B78:N89,N74,$B76:$B77) ->  | O77: =DGET($B78:O89,O74,$B76:$B77) ->  | P77: =DGET($B78:P89,P74,$B76:$B77) ->  | Q77: =DGET($B78:Q89,Q74,$B76:$B77) ->  | R77: =DGET($B78:R89,R74,$B76:$B77) -> 
B78: =B76 -> SE1 | C78: =C76 -> SD2 | D78: =D76 -> SD3 | E78: SD4 | F78: SD5 | G78: SD6 | H78: SD7 | I78: SD8 | J78: SD9 | K78: SD10 | L78: SD11 | M78: SD12 | N78: SD13 | O78: SD14 | P78: SD15 | Q78: SD16 | R78: SD17
B79: =B7 -> Deutsch | C79: Währungssymbol | D79: Faktor (universal) | E79: Pflichtfelder | F79: ACHTUNG | G79: Diese Datei enthält Makros! Die Ausführung von Makros wird jedoch verhindert! Bitte stellen Sie sicher, dass Makros ausgeführt werden können!
B80: =B8 -> English | C80: currency symbol | D80: factor (universal) | E80: required fields | F80: ATTENTION | G80: This file contains macros! The execution of macros is prevented! Please make sure that macros can be executed!
B81: Italiano | C81: simbolo di valuta | D81: fattore (universale) | E81: campi obbligatori | F81: ATTENZIONE | G81: Questo file contiene macro! L'esecuzione di macro è impedito! Si prega di assicurarsi che le macro possono essere eseguite!
B82: Français | C82: symbole de la monnaie | D82: facteur (universel) | E82: champs obligatoires | F82: ATTENTION | G82: Ce fichier contient des macros! L'exécution de macros est empêché! S'il vous plaît assurez que les macros peuvent être exécutées!
B83: Español | C83: símbolo de moneda | D83: factor (universal) | E83: los campos requeridos | F83: ATENCIÓN | G83: Este archivo contiene macros! La ejecución de las macros se impide! Por favor, asegúrese de que las macros se pueden ejecutar!
B84: Polski | C84: Symbol waluty | D84: współczynnik (uniwersalny) | E84: Pole wymagane | F84: UWAGA | G84: Ten plik zawiera makra! Wykonanie makr jest zabezpieczone! Proszę się upewnić, że makra mogą być wykonane!
B85: 한국어 | C85: 통용 화폐 | D85: 일반적 요소 | E85: 필요 사항 | F85: 주의 | G85: 이 파일은 매크로가 포함되어 있습니다. 매크로 실행은 보호되어 있습니다. 매크로를 실행할 수 있는지 확인하세요.
B86: 0
B87: 0
B88: 0
B89: 0

Sheet Übergabe (hidden)
B3: Übergabewerte an PSI-Penta
B5: Diese Werte werden zur Generierung der Stückliste bzw. zur Kalkulation in PSI-Penta benötigt
B6: (werden teilweise auch für die PDF-Zeichnungen benötigt)
B7: B | C7: C | D7: D | E7: E
C8: Feldname für Penta + PDF
A9: 9
A10: 10 | D10: 100
A11: 11 | D11: K
A12: 12 | D12: 0
A13: 13 | C13: STATUS | D13: 2
A14: 14 | C14: NAME
A15: 15 | C15: KONFNAME
A16: 16 | C16: BAMUNR | D16: =Berechnung!F3 -> 000000000
A17: 17 | B17: Bezeichnung 1 | C17: ARTBEZ1 | D17: =Berechnung!D29&Berechnung!E32&Berechnung!D46&Artikelstamm!P6&"L"&Berechnung!D20&Berechnung!E53&"N"&Berechnung!D114&LEFT(Berechnung!D104,2)&"__________" -> KugelleisteH18L498,5RN16Al__________ | F17: max. 30 Zeichen
A18: 18 | B18: Bezeichnung 2 | C18: ARTBEZ2 | D18: =Berechnung!C131&"kN_H"&Berechnung!D68&"_G"&Berechnung!D58&"_T"&Berechnung!D89&IF(Berechnung!C44=1,Berechnung!D99&"_P"&Berechnung!D84,"")&"__________" -> 12,64kN_H30_G30_T100N_P100__________ | F18: max. 30 Zeichen
A19: 19 | B19: Konfigurationszeitstempel TT.MM.JJJJ hh:mm:ss | C19: KONFZEIT | D19: =Berechnung!D181 -> 18.04.2017 10:33:43
A20: 20 | B20: Zeichnungsnummer / Artikelnummer | C20: ZSB | D20: =Berechnung!E3 -> 892177118#000000000 | F20: für die Montagezeichnung der Leiste
A21: 21 | B21: Zeichnungsnummer Einbauzeichnung | C21: ZSBE | D21: ="E"&Berechnung!E3 -> E892177118#000000000 | F21: Angebots- bzw. Freigabezeichnung für den Kunden
A22: 22 | B22: Zeichnungsnummer Fertigungszeichnung | C22: ZNG | D22: =Berechnung!D3 -> 504950830#000000000 | F22: für die Fertigungszeichnung des Leistenkörpers
A23: 23 | B23: Verpackungsgröße | C23: VERPACK | D23: ="BxHxL= "&Berechnung!E36&"x"&Berechnung!D68&"x"&Berechnung!D20 -> BxHxL= 18x30x498,5 | F23: Einbauhinweis für VERPACK
A24: 24 | B24: "sprechende" Artikelnummer | C24: ARTNR | D24: =Berechnung!D5&Berechnung!E5 -> 892177118L495R | F24: (bisher verwendet; entspricht Katalogangabe) | G24: beschreibt die Variante vollständig
A25: 25
A26: 26 | B26: Leistenart | C26: LEISTART | D26: =Berechnung!D29 -> Kugelleiste | E26: =Berechnung!C28 -> 1 | F26: Kugel- oder Rollenleiste | G26: 1 (Kugelleiste) oder 2 (Rollenleiste)
A27: 27 | B27: Betätigungsart | C27: BETART | D27: =Berechnung!D45 -> hydraulisch | E27: =Berechnung!C44 -> 1 | F27: hydraulisch oder gefedert | G27: 1 (hydraulisch) oder 2 (gefedert)
A28: 28 | B28: Kugelleiste mit Tellerfedern? | C28: TFED | D28: =IF(OR(Berechnung!D70=TRUE,AND(Berechnung!C28=1,Berechnung!C44=2,Berechnung!E36=36)),"J","N") -> N | F28: J (mit Tellerfedern) oder N (mit Schraubenfeder)
A29: 29 | B29: Befestigung | C29: BEF | D29: =Berechnung!D56 -> Riegel | E29: =Berechnung!C53 -> 1 | F29: Riegel bzw. Schraube oder Klemmschloss | G29: 1 (Riegel bzw. Schraube) oder 2 (Klemmschloss)
A30: 30 | B30: Hub in mm | C30: HUB | D30: =Berechnung!D48 -> 1 | F30: Standard oder vergrößert (mm)
A31: 31 | B31: Hub | C31: HUBKEN | E31: =Berechnung!C48 -> 1 | G31: 1 (Standard) oder 2 (vergrößert)
A32: 32 | B32: Nutbreite in mm | C32: NUTBR | D32: =Berechnung!D36 -> 18 mm | E32: =Berechnung!E36 -> 18 | G32: 13 (13/16"), 17 (1 1/16"), 18 (18mm), 22 (22mm), 28 (28mm), 36 (36mm)
A33: 33 | B33: Anzahl der Einsätze | C33: ANZEIN | D33: =Berechnung!D114 -> 16 | F33: (Stück)
A34: 34 | B34: Gesamtzahl Tellerfedern | C34: ANZTFED | D34: =Berechnung!D176 -> 0
A35: 35 | B35: Anzahl "Aufpreis je 100 mm" >500 mm | C35: ANZAUF | D35: =IF(Berechnung!C20-500<0,0,ROUNDUP((Berechnung!C20-500)/100,0)) -> 0 | F35: (Stück) zur Berechnung Preis Leistenkörper
A36: 36 | B36: Leistenlänge >1600? | C36: LEISTEL | D36: =Berechnung!C20>1600 -> FALSE | E36: =IF(D36=FALSE,0,1) -> 0 | F36: zur Berechnung Preis Leistenkörper | G36: 0 (<=1600) oder 1 (>1600)
A37: 37 | B37: Leiste auf Höhe fräsen? (Höhe < Standard) | C37: LEISTEH | D37: =Berechnung!D68<Artikelstamm!AG6 -> FALSE | E37: =IF(D37=FALSE,0,1) -> 0 | F37: zur Berechnung Preis Leistenkörper | G37: 0 (Standardhöhe) oder 1 (Höhe kleiner Standard)
A38: 38 | B38: Leistenhöhe > Standard | C38: LEISTEH1 | E38: =IF(Berechnung!D68>Berechnung!C75,1,0) -> 0 | F38: zur Berechnung Preis Leistenkörper Stahl | G38: 0 (Standardhöhe oder kleiner) oder 1 (Höhe > Standard)
A39: 39 | B39: Leistenmaterial | C39: MAT | D39: =Berechnung!D104 -> Aluminium | E39: =Berechnung!C103 -> 1 | F39: Aluminuim oder Stahl | G39: 1 (Aluminuim) oder 2 (Stahl)
A40: 40 | B40: Gewicht der Leiste ca. | C40: GEWLEIST | D40: =Berechnung!D138 -> 0.9 | F40: (kg)
A41: 41 | B41: Gewicht des Leistenkörpers | C41: GEWLKOER | D41: =Berechnung!D150 -> 0.53 | F41: (kg)
A42: 42 | B42: Dichtungsmaterial | C42: DICHMAT | D42: =Berechnung!C98 -> NBR | E42: =Berechnung!D98 -> 1 | F42: NBR, FKM oder FFKM | G42: 1 (Standard NBR) oder 2 (FKM) oder 3 (FFKM)
A43: 43
A44: 44
A45: 45
A46: 46
A47: 47 | B47: Übergabewerte für die PDF-Zeichnungen
A48: 48
A49: 49 | B49: Technische Daten und Angaben
A50: 50 | B50: Diese Angaben werden für die Zeichnungen benötigt, könnten aber auch in PSI-Penta verwendet werden, z.B. für den Angebotstext
A51: 51
A52: 52 | B52: Name PDF-Formular Montagezeichnung | C52: ZSBPDF | D52: =Berechnung!C5 -> 892X7XX18 | F52: für die Montagezeichnung
A53: 53 | B53: Name PDF-Formular Einbauzeichnung | C53: ZSBEPDF | D53: ="E"&Berechnung!C5 -> E892X7XX18 | F53: für die Einbauzeichnung
A54: 54 | B54: Name PDF-Formular Fertigungszeichnung | C54: ZNGPDF | D54: =Berechnung!C3 -> 5049592X7XX18 | F54: für Fertigungszeichnung
A55: 55 | B55: Leistenlänge in mm | C55: LLEIST | D55: =Berechnung!D20 -> 498.5 | F55: Gesamtlänge der Leiste inkl. Verschlußschraube (mm)
A56: 56 | B56: Länge des Leistenkörpers in mm | C56: LKOER | D56: =Berechnung!C20 -> 495 | F56: (mm) Länge des Fertigungsteils Leistenkörper
A57: 57 | B57: Nuttiefe in mm | C57: NUTTIEF | D57: =Berechnung!D68 -> 30 | F57: (mm)
A58: 58 | B58: Abstand der Einsätze in mm | C58: ABEIN | D58: =Berechnung!D58 -> 30 | F58: (mm)
A59: 59 | B59: Rollenausrichtung | C59: ROLAUS | D59: =Berechnung!D33 ->  | E59: =Berechnung!E32 ->  | F59: nur bei Rollenleisten (0° oder 90°), sonst leer | G59: "leer" (0°) oder X (90°)
A60: 60 | B60: Tragkraft pro Einsatz in kN | C60: FEIN | D60: =Berechnung!C130 -> 0.79 | F60: kN | G60: unter Berücksichtigung von Betriebsdruck und Einsatztemperatur
A61: 61 | B61: Gesamttragkraft der Leiste in kN | C61: FLEIST | D61: =Berechnung!C131 -> 12.64 | F61: kN bei voller Überdeckung aller Einsätze
A62: 62 | B62: Ölbedarf in ccm | C62: OELB | D62: =IF(E27=1,Berechnung!D133,0) -> 1.6 | F62: cm³ (für vollen Hub)
A63: 63 | B63: Betriebsdruck in bar | C63: DRUCK | D63: =Berechnung!D84 -> 100 | F63: bar (kann niedriger als Standard gewählt werden)
A64: 64 | B64: reduzierter Betriebsdruck in bar | C64: DRUCKZUL | D64: =IF(D67>100,Berechnung!D86,"") ->  | F64: bar, bei hydraulischen Leisten für erhöhte Temperaturen (empfohlen)
A65: 65 | B65: Anschlussgewinde | C65: AGEW | D65: =Artikelstamm!AB6 -> G1/8 | F65: bei hydraulischen Leisten
A66: 66 | B66: Überstand Verschlussschraube in mm | C66: VERSCH | D66: =IF(Berechnung!C44=1,Artikelstamm!AL6) -> 3.5 | F66: mm, bei hydraulischen Leisten
A67: 67 | B67: max. Einsatztemperatur in °C | C67: EINTEMP | D67: =Berechnung!D89 -> 100 | F67: °C
A68: 68
A69: 69
A70: 70
A71: 71
A72: 72 | B72: Diese Werte werden ausschließlich für die Zeichnungen benötigt
A73: 73
A74: 74 | B74: Maße für die Fertigungszeichnung
A75: 75
A76: 76 | B76: Bohrungstiefe Kolben-/Federbohrung | C76: BOHRTIEF | D76: =Berechnung!D156 -> 24.1 | F76: teilweise abhängig von der Nuttiefe (mm)
A77: 77 | B77: Abstand zwischen Einsatz 1 u. 2 | C77: ABEIN12 | D77: =Berechnung!D111 -> 30 | F77: (mm) kann wg. Klemmschloss vom Abstand der restlichen Einsätze abweichen (Wert Artikelstamm)
A78: 78 | B78: Anzahl Einsatzabstände ohne 1. Einsatz | C78: ANABEINO1 | D78: =D33-2 -> 14 | F78: (Stück) für hydraulische Leisten
A79: 79 | B79: Gesamtmaß vom 2. bis letzten Einsatz | C79: ABEIN2L | D79: =D78*D58 -> 420 | F79: (mm) für hydraulische Leisten
A80: 80 | B80: Anzahl Einsatzabstände inkl. 1. Einsatz | C80: ANABEIN | D80: =D33-1 -> 15 | F80: (Stück) für gefederte Leisten
A81: 81 | B81: Gesamtmaß vom 1. bis letzten Einsatz | C81: ABEIN1L | D81: =D80*D58 -> 450 | F81: (mm) für gefederte Leisten
A82: 82 | B82: Position Ölbohrung Stahlausführung | C82: POSOEL | D82: =Berechnung!D158 -> 7 | F82: (mm) für Stahlleisten mit Nuttiefe > Standard
A83: 83 | B83: Position Anschlussgewinde Stahlausführung | C83: POSAGEW | D83: =Berechnung!D167 -> 8 | F83: (mm) für Stahlleisten mit Nuttiefe > Standard
A84: 84 | B84: Durchmesser Ölbohrung | C84: DOEL | D84: =Berechnung!D147 -> 5 | F84: (mm) unterschiedliche Abmessungen Alu/Stahl
A85: 85
A86: 86 | B86: Texte zum Eintragen in die PDF-Zeichnungen
A87: 87
A88: 88 | B88: Material des Leistenkörpers | C88: MATLKOER | D88: =Berechnung!D105 -> AlMgSi 0,7 (F27)
A89: 89 | B89: Artikelnummer Rohmaterial | C89: NRROH | D89: =IF(Berechnung!C103=1,Artikelstamm!AZ6,"") -> 404950706 | F89: nur für Stangenmaterial Aluminium
A90: 90 | B90: Kenner Befestigung | C90: BEFKEN | D90: =Berechnung!E53 -> R | F90: R (Riegel) oder S (Schraube) oder K (Klemmschloss)
A91: 91 | B91: Datum | C91: DAT | D91: =TEXT(Berechnung!C181,"TT.MM.JJJ") -> 18.04.2017 | F91: Datum der Erstellung
A92: 92 | B92: Typ-Nr. | C92: TYPNR | D92: =Berechnung!F5 -> 9217-7118
A93: 93
A94: 94 | B94: Werte zur Steuerung von Optionsfelden in den PDF-Zeichnungen
A95: 95
A96: 96 | B96: Befestigung Riegel / Schraube? | C96: RIESCHR | D96: =IF(Berechnung!C53=1,"JA","NEIN") -> JA | F96: JA (Riegel/Schraube) oder NEIN (Klemmschloss)
A97: 97 | B97: Rollenausrichtung 90°? | C97: ROLAUS90 | D97: =IF(Berechnung!C32=TRUE,"JA","NEIN") -> NEIN | F97: JA (90°) oder NEIN (0°), nur für Rollenleiste
A98: 98
A99: 99

Sheet PSIPENTA (hidden)
A1: Übergabe Penta | C1: Dateiname: | D1: 892-APP.xls | H1: Konfiguration | I1: Konfigurationswerte
A2: Konfigurationswerte | C2: =COUNTA(D4:D45)+3 -> 3 | F2: aktuelle Konfiguration | H2: Standardwerte | I2: aus PSI-Penta
A3: " | D3: Zelle (VBA) | E3: Bennennung | F3: Inhalt | I3: 9
A4: 4 | E4: 1. Leistenlänge | F4: =Eingabe!C11 -> 500 | H4: 500 | I4: 500
A5: 5 | E5: 2. Auswahl Kugel- / Rollenleiste | F5: =Berechnung!C28 -> 1 | H5: 1 | I5: 1
A6: 6 | E6: 2.1 Rollenausrichtung | F6: =Berechnung!C32 -> FALSE | H6: FALSE | I6: FALSE
A7: 7 | E7: 3. Nutbreite | F7: =Berechnung!C36 -> 1 | H7: 1 | I7: 1
A8: 8 | E8: 4. Betätigungsart | F8: =Berechnung!C44 -> 1 | H8: 1 | I8: 1
A9: 9 | E9: 5. Hub | F9: =Berechnung!C48 -> 1 | H9: 1 | I9: 1
A10: 10 | E10: 6. Befestigung | F10: =Berechnung!C53 -> 1 | H10: 1 | I10: 1
A11: 11 | E11: 7. Abstand Einsätze | F11: =Berechnung!C64 -> 50 | H11: =Berechnung!C63 -> 50 | I11: 50
A12: 12 | E12: 8. Nuttiefe | F12: =Berechnung!C80 -> 300 | H12: =Berechnung!C79 -> 300 | I12: 150
A13: 13 | E13: 9.1 Betriebsdruck | F13: =Eingabe!G30 -> 100 | H13: 100 | I13: 100
A14: 14 | E14: 9.2 Einsatztemperatur | F14: =Eingabe!G38 -> 100 | H14: =Artikelstamm!E39 -> 100 | I14: 100
A15: 15 | E15: 9.3 Gehäusematerial | F15: =Berechnung!C103 -> 1 | H15: 1 | I15: 1
A16: 16 | E16: =Übergabe!B9 -> 0 | F16: =IF(Übergabe!D9=0,"",Übergabe!D9) -> 
A17: 17 | E17: =Übergabe!B19 -> Konfigurationszeitstempel TT.MM.JJJJ hh:mm:ss
A18: 18 | E18: =Berechnung!B2 -> PDF-Zeichnungen erzeugt? | F18: =IF(Berechnung!B1=0,"",Berechnung!B1) -> 
A19: 19 | E19: =Übergabe!B10 -> 0 | F19: =Übergabe!D10 -> 100 | H19: 100 | I19: 100
A20: 20 | E20: =Übergabe!B11 -> 0 | F20: =Übergabe!D11 -> K | H20: K | I20: K
A21: 21 | E21: =Übergabe!B12 -> 0 | F21: =Übergabe!D12 -> 0 | H21: 0 | I21: 0
A22: 22 | E22: =Übergabe!B13 -> 0 | F22: =Übergabe!D13 -> 2 | H22: 2 | I22: 2
A23: 23 | E23: =Übergabe!B14 -> 0 | F23: =IF(Übergabe!D14=0,"",Übergabe!D14) -> 
A24: 24 | E24: =Übergabe!B15 -> 0 | F24: =IF(Übergabe!D15=0,"",Übergabe!D15) -> 
A25: 25 | E25: Dateiname Excelergebnistabelle
A26: 26 | E26: Pfad Excelergebnistabelle
A27: 27 | E27: Datapool-String PSI-Penta
